Portfolio,Expense Area,Cost Centre,Expense Type,Account Code,Amount,Supplier Name,SupplierId,Pay Date,Transaction No.,,VAT No.,Co. Reg. No.,VAT No.,Voucher Type,�,Trans Date
Environment and Public Realm,Grounds Maintenance,PKS20,Materials,303,318.47,Arco Limited,100015,09/08/2018,10261149,TC,,,166911546,PI,606.37,43279
Environment and Public Realm,Grounds Maintenance,PKS20,Personal Protective Equipment,306,95.9,Arco Limited,100015,09/08/2018,10261149,TC,,,166911546,PI,606.37,43279
Environment and Public Realm,Grounds Maintenance,PKS20,Personal Protective Clothing,340,90.94,Arco Limited,100015,09/08/2018,10261149,TC,,,166911546,PI,606.37,43279
Environment and Public Realm,WSU Depot,WDP00,Materials,303,454.72,Arco Limited,100015,02/08/2018,10261851,TC,,,166911546,PN,579.25,43299
Environment and Public Realm,Domestic Waste Collection/Recycling,REF00,Personal Protective Clothing,340,27.99,Arco Limited,100015,02/08/2018,10261851,TC,,,166911546,PN,579.25,43299
Environment and Public Realm,Garage,WVR00,Materials,303,429.8,Arco Limited,100015,23/08/2018,10262397,TC,,,166911546,PN,515.76,43314
Environment and Public Realm,Highways,HIG20,Materials,303,890.1,Autopa Ltd,100046,16/08/2018,10262703,CS,,,GB196655022,PI,1068.12,43326
Environment and Public Realm,Gypsy & Traveller Enforcement,TRA00,External Contractor & Operator,742,635.02,Autopa Ltd,100046,23/08/2018,10262849,CS,,,GB196655022,PI,762.02,43328
Housing Revenue Account,Gas Heating Systems,UMR01,R&M External Contractors,100,40.13,AWM Electrical Contractors Ltd,100051,02/08/2018,10262231,CS,,7430696,661675907,PN,3587.76,43311
Housing Revenue Account,Electrical maintenance,UMR10,R&M External Contractors,100,2814.17,AWM Electrical Contractors Ltd,100051,02/08/2018,10262231,CS,,7430696,661675907,PN,3587.76,43311
Housing Revenue Account,Miscellaneous Unplanned Maintenance and Repair,UMR17,R&M External Contractors,100,135.5,AWM Electrical Contractors Ltd,100051,02/08/2018,10262231,CS,,7430696,661675907,PN,3587.76,43311
Housing Revenue Account,Gas Heating Systems,UMR01,R&M External Contractors,100,40.61,AWM Electrical Contractors Ltd,100051,02/08/2018,10262244,CS,,7430696,661675907,PN,1719.11,43311
Housing Revenue Account,Electrical maintenance,UMR10,R&M External Contractors,100,1391.98,AWM Electrical Contractors Ltd,100051,02/08/2018,10262244,CS,,7430696,661675907,PN,1719.11,43311
Housing Revenue Account,Electrical Inspections,UMR04,R&M External Contractors,100,152.88,AWM Electrical Contractors Ltd,100051,02/08/2018,10262262,CS,,7430696,661675907,PN,2527.79,43312
Housing Revenue Account,Repairs and Maintenance - Void works,UMR09,R&M External Contractors,100,63.08,AWM Electrical Contractors Ltd,100051,02/08/2018,10262262,CS,,7430696,661675907,PN,2527.79,43312
Housing Revenue Account,Electrical maintenance,UMR10,R&M External Contractors,100,1724.21,AWM Electrical Contractors Ltd,100051,02/08/2018,10262262,CS,,7430696,661675907,PN,2527.79,43312
Housing Revenue Account,Multi-Storey Flats,MSF00,Other Miscellaneous Expenses,444,166.32,AWM Electrical Contractors Ltd,100051,02/08/2018,10262262,CS,,7430696,661675907,PN,2527.79,43312
Housing Revenue Account,Electrical maintenance,UMR10,R&M External Contractors,100,1040.4,AWM Electrical Contractors Ltd,100051,02/08/2018,10262263,CS,,7430696,661675907,PN,1274.27,43312
Housing Revenue Account,Miscellaneous Unplanned Maintenance and Repair,UMR17,R&M External Contractors,100,21.5,AWM Electrical Contractors Ltd,100051,02/08/2018,10262263,CS,,7430696,661675907,PN,1274.27,43312
Housing Revenue Account,Electrical maintenance,UMR10,R&M External Contractors,100,741.16,AWM Electrical Contractors Ltd,100051,02/08/2018,10262264,CS,,7430696,661675907,PN,1247.35,43312
Housing Revenue Account,Miscellaneous Unplanned Maintenance and Repair,UMR17,R&M External Contractors,100,298.3,AWM Electrical Contractors Ltd,100051,02/08/2018,10262264,CS,,7430696,661675907,PN,1247.35,43312
Housing Revenue Account,Electrical maintenance,UMR10,R&M External Contractors,100,284.97,AWM Electrical Contractors Ltd,100051,02/08/2018,10262265,CS,,7430696,661675907,PN,4776.11,43312
Capital Housing Revenue Account,Fire Risk Prevention Works,HCE18,Capital Contract Payments,5000,3695.12,AWM Electrical Contractors Ltd,100051,02/08/2018,10262265,CS,,7430696,661675907,PN,4776.11,43312
Housing Revenue Account,Repairs and Maintenance - Void works,UMR09,R&M External Contractors,100,1178.33,AWM Electrical Contractors Ltd,100051,02/08/2018,10262315,CS,,7430696,661675907,PN,1697.2,43313
Communities and Homes,CAST - Private Sector Leasing,CAS03,Electricity,130,150,AWM Electrical Contractors Ltd,100051,02/08/2018,10262315,CS,,7430696,661675907,PN,1697.2,43313
Housing Revenue Account,Multi-Storey Flats,MSF00,Other Miscellaneous Expenses,444,86,AWM Electrical Contractors Ltd,100051,02/08/2018,10262315,CS,,7430696,661675907,PN,1697.2,43313
Communities and Homes,CAST - Private Sector Leasing,CAS03,R&M External Contractors,100,228.44,AWM Electrical Contractors Ltd,100051,02/08/2018,10262344,CS,,7430696,661675907,PN,1072.99,43313
Housing Revenue Account,Repairs and Maintenance - Void works,UMR09,R&M External Contractors,100,665.72,AWM Electrical Contractors Ltd,100051,02/08/2018,10262344,CS,,7430696,661675907,PN,1072.99,43313
Housing Revenue Account,Repairs and Maintenance - Void works,UMR09,R&M External Contractors,100,632.3,AWM Electrical Contractors Ltd,100051,16/08/2018,10262490,CS,,7430696,661675907,PN,758.76,43319
Housing Revenue Account,Gas Heating Systems,UMR01,R&M External Contractors,100,21.5,AWM Electrical Contractors Ltd,100051,09/08/2018,10262562,CS,,7430696,661675907,PN,1066.07,43320
Housing Revenue Account,Electrical maintenance,UMR10,R&M External Contractors,100,807.9,AWM Electrical Contractors Ltd,100051,09/08/2018,10262562,CS,,7430696,661675907,PN,1066.07,43320
Housing Revenue Account,Miscellaneous Unplanned Maintenance and Repair,UMR17,R&M External Contractors,100,59,AWM Electrical Contractors Ltd,100051,09/08/2018,10262562,CS,,7430696,661675907,PN,1066.07,43320
Communities and Homes,CAST - Private Sector Leasing,CAS03,R&M External Contractors,100,27.21,AWM Electrical Contractors Ltd,100051,09/08/2018,10262563,CS,,7430696,661675907,PN,1365.59,43320
Housing Revenue Account,Electrical Inspections,UMR04,R&M External Contractors,100,917.28,AWM Electrical Contractors Ltd,100051,09/08/2018,10262563,CS,,7430696,661675907,PN,1365.59,43320
Housing Revenue Account,Electrical maintenance,UMR10,R&M External Contractors,100,193.5,AWM Electrical Contractors Ltd,100051,09/08/2018,10262563,CS,,7430696,661675907,PN,1365.59,43320
Housing Revenue Account,Repairs and Maintenance - Void works,UMR09,R&M External Contractors,100,710.61,AWM Electrical Contractors Ltd,100051,16/08/2018,10262674,CS,,7430696,661675907,PN,878.53,43325
Housing Revenue Account,Multi-Storey Flats,MSF00,Other Miscellaneous Expenses,444,21.5,AWM Electrical Contractors Ltd,100051,16/08/2018,10262674,CS,,7430696,661675907,PN,878.53,43325
Housing Revenue Account,Electrical Inspections,UMR04,R&M External Contractors,100,190.19,AWM Electrical Contractors Ltd,100051,16/08/2018,10262676,CS,,7430696,661675907,PN,4473.14,43325
Housing Revenue Account,Electrical maintenance,UMR10,R&M External Contractors,100,1171.24,AWM Electrical Contractors Ltd,100051,16/08/2018,10262676,CS,,7430696,661675907,PN,4473.14,43325
Housing Revenue Account,Miscellaneous Unplanned Maintenance and Repair,UMR17,R&M External Contractors,100,81.66,AWM Electrical Contractors Ltd,100051,16/08/2018,10262676,CS,,7430696,661675907,PN,4473.14,43325
Capital Housing Revenue Account,Fire Risk Prevention Works,HCE18,Capital Contract Payments,5000,2284.52,AWM Electrical Contractors Ltd,100051,16/08/2018,10262676,CS,,7430696,661675907,PN,4473.14,43325
Housing Revenue Account,Repairs and Maintenance - Void works,UMR09,R&M External Contractors,100,7694.59,AWM Electrical Contractors Ltd,100051,23/08/2018,10262791,CS,,7430696,661675907,PN,9233.51,43327
Housing Revenue Account,Electrical maintenance,UMR10,R&M External Contractors,100,898.1,AWM Electrical Contractors Ltd,100051,30/08/2018,10263077,CS,,7430696,661675907,PN,1576.5,43336
Housing Revenue Account,Miscellaneous Unplanned Maintenance and Repair,UMR17,R&M External Contractors,100,415.65,AWM Electrical Contractors Ltd,100051,30/08/2018,10263077,CS,,7430696,661675907,PN,1576.5,43336
Communities and Homes,CAST - Private Sector Leasing,CAS03,R&M External Contractors,100,58.5,AWM Electrical Contractors Ltd,100051,30/08/2018,10263078,CS,,7430696,661675907,PN,2297.5,43336
Housing Revenue Account,Repairs and Maintenance - Void works,UMR09,R&M External Contractors,100,1856.09,AWM Electrical Contractors Ltd,100051,30/08/2018,10263078,CS,,7430696,661675907,PN,2297.5,43336
Housing Revenue Account,Gas Heating Systems,UMR01,R&M External Contractors,100,21.5,AWM Electrical Contractors Ltd,100051,30/08/2018,10263079,CS,,7430696,661675907,PN,4865.51,43336
Housing Revenue Account,Electrical maintenance,UMR10,R&M External Contractors,100,2019.27,AWM Electrical Contractors Ltd,100051,30/08/2018,10263079,CS,,7430696,661675907,PN,4865.51,43336
Housing Revenue Account,Miscellaneous Unplanned Maintenance and Repair,UMR17,R&M External Contractors,100,47.18,AWM Electrical Contractors Ltd,100051,30/08/2018,10263079,CS,,7430696,661675907,PN,4865.51,43336
Capital Housing Revenue Account,Fire Risk Prevention Works,HCE18,Capital Contract Payments,5000,1788.96,AWM Electrical Contractors Ltd,100051,30/08/2018,10263079,CS,,7430696,661675907,PN,4865.51,43336
Capital Housing Revenue Account,Disabled Adaptations,HCR01,Capital Contract Payments,5000,177.68,AWM Electrical Contractors Ltd,100051,30/08/2018,10263079,CS,,7430696,661675907,PN,4865.51,43336
Housing Revenue Account,Repairs and Maintenance - Void works,UMR09,R&M External Contractors,100,589.86,AWM Electrical Contractors Ltd,100051,30/08/2018,10263080,CS,,7430696,661675907,PN,811.03,43336
Housing Revenue Account,Multi-Storey Flats,MSF00,Other Miscellaneous Expenses,444,86,AWM Electrical Contractors Ltd,100051,30/08/2018,10263080,CS,,7430696,661675907,PN,811.03,43336
Housing Revenue Account,Repairs and Maintenance - Void works,UMR09,R&M External Contractors,100,506.48,AWM Electrical Contractors Ltd,100051,30/08/2018,10263081,CS,,7430696,661675907,PN,607.78,43336
Housing Revenue Account,Gas Heating Systems,UMR01,R&M External Contractors,100,21.5,AWM Electrical Contractors Ltd,100051,30/08/2018,10263082,CS,,7430696,661675907,PN,10350.18,43336
Housing Revenue Account,Electrical Inspections,UMR04,R&M External Contractors,100,1544.13,AWM Electrical Contractors Ltd,100051,30/08/2018,10263082,CS,,7430696,661675907,PN,10350.18,43336
Housing Revenue Account,Electrical maintenance,UMR10,R&M External Contractors,100,6314.83,AWM Electrical Contractors Ltd,100051,30/08/2018,10263082,CS,,7430696,661675907,PN,10350.18,43336
Housing Revenue Account,Miscellaneous Unplanned Maintenance and Repair,UMR17,R&M External Contractors,100,744.69,AWM Electrical Contractors Ltd,100051,30/08/2018,10263082,CS,,7430696,661675907,PN,10350.18,43336
Housing Revenue Account,Repairs and Maintenance - Void works,UMR09,R&M External Contractors,100,1613,AWM Electrical Contractors Ltd,100051,30/08/2018,10263180,CS,,7430696,661675907,PN,1935.6,43342
Housing Revenue Account,Electrical maintenance,UMR10,R&M External Contractors,100,1522.34,AWM Electrical Contractors Ltd,100051,30/08/2018,10263181,CS,,7430696,661675907,PN,1965.71,43342
Housing Revenue Account,Miscellaneous Unplanned Maintenance and Repair,UMR17,R&M External Contractors,100,115.75,AWM Electrical Contractors Ltd,100051,30/08/2018,10263181,CS,,7430696,661675907,PN,1965.71,43342
Corporate Resources,Corporate Property R&M,CPA01,R&M External Contractors,100,1075.95,Adt Fire & Security plc,100070,23/08/2018,10262472,TC,,,413 6330 86,PN,1291.14,43318
Capital Housing Revenue Account,Kitchen Modifications,HIK10,Capital Contract Payments,5000,34223.18,A C E Carpentry & Joinery Contractors Ltd,100085,02/08/2018,10262261,CS,,4120783,729422428,PN,41067.82,43312
Capital Housing Revenue Account,Disabled Adaptations,HCR01,Capital Contract Payments,5000,322.45,A C E Carpentry & Joinery Contractors Ltd,100085,30/08/2018,10263178,CS,,4120783,729422428,PN,14609.88,43342
Capital Housing Revenue Account,Kitchen Modifications,HIK10,Capital Contract Payments,5000,11852.45,A C E Carpentry & Joinery Contractors Ltd,100085,30/08/2018,10263178,CS,,4120783,729422428,PN,14609.88,43342
Environment and Public Realm,Grass Cutting- Parishes,PKS13,External Contractor & Operator,742,4091,Brinklow Parish Council,100157,30/08/2018,10263068,TC,,,,PN,4091,43336
Corporate Resources,Council Tax and NNDR Collection,CTX01,External Legal Costs,741,75,Bristow & Sutor,100159,09/08/2018,10261949,TC,,,294694111,PN,663.84,43301
Corporate Resources,Council Tax and NNDR Collection,CTX01,External Legal Costs,741,330.07,Bristow & Sutor,100159,09/08/2018,10262223,TC,,,294694111,PN,730.4,43311
Corporate Resources,Council Tax and NNDR Collection,CTX01,External Legal Costs,741,228.72,Bristow & Sutor,100159,09/08/2018,10262416,TC,,,294694111,PN,714.48,43315
Corporate Resources,Council Tax and NNDR Collection,CTX01,External Legal Costs,741,430.59,Bristow & Sutor,100159,16/08/2018,10262653,TC,,,294694111,PN,1441.21,43322
Corporate Resources,Council Tax and NNDR Collection,CTX01,External Legal Costs,741,242.91,Bristow & Sutor,100159,23/08/2018,10262854,TC,,,294694111,PN,944.06,43329
Corporate Resources,Council Tax and NNDR Collection,CTX01,External Legal Costs,741,405,Bristow & Sutor,100159,30/08/2018,10263062,TC,,,294694111,PN,937.54,43336
Corporate Resources,Council Tax and NNDR Collection,CTX01,External Legal Costs,741,469,Bristow & Sutor,100159,30/08/2018,10263065,TC,,,294694111,PN,585.53,43336
Housing Revenue Account,Control Centre (HRA),CCE00,Telephone Expenses,371,37.89,British Telecommunications Plc,100161,09/08/2018,10262401,TC,,,245719348,PN,1791.43,43314
Communities and Homes,Broadband & internet,TEL01,Telephone Expenses,371,37.89,British Telecommunications Plc,100161,09/08/2018,10262401,TC,,,245719348,PN,1791.43,43314
Communities and Homes,"Landlines, faxes, alarms & misc.",TEL02,Telephone Expenses,371,1417.08,British Telecommunications Plc,100161,09/08/2018,10262401,TC,,,245719348,PN,1791.43,43314
Housing Revenue Account,Sheltered Housing,AGP00,Telephone Expenses,371,3919.32,British Telecommunications Plc,100161,16/08/2018,10262718,TC,,,245719348,PN,4703.18,43326
Environment and Public Realm,Crematorium,CRM00,Telephone Expenses,371,1187.88,British Telecommunications Plc,100161,23/08/2018,10262900,TC,,,245719348,PN,1425.46,43332
Corporate Resources,Corporate Property R&M,CPA01,R&M External Contractors,100,1728.9,Chillaire Service & Maintenance Ltd,100305,02/08/2018,10262259,TC,,4622016,806802244,PN,2074.68,43311
Corporate Resources,Corporate Property R&M,CPA01,R&M External Contractors,100,1850,Chillaire Service & Maintenance Ltd,100305,16/08/2018,10262537,TC,,4622016,806802244,PN,2220,43319
Corporate Resources,General Financial Services,GFS00,Subscriptions,421,8065,Cipfa Business Ltd,100341,30/08/2018,10262723,TC,,2376684,627390725,PI,9678,43326
Growth and Investment,Art Gallery and Museum,AGM00,Building cleaning,170,401.88,Cannon Hygiene Ltd,100436,30/08/2018,10262406,TC,,,209918933,PN,1231.06,43314
Corporate Resources,Town Hall,OFF00,Building cleaning,170,468,Cannon Hygiene Ltd,100436,30/08/2018,10262406,TC,,,209918933,PN,1231.06,43314
Housing Revenue Account,Unplanned Maintenance and Repair,UMR00,Building cleaning,170,26.04,Cannon Hygiene Ltd,100436,30/08/2018,10262406,TC,,,209918933,PN,1231.06,43314
Environment and Public Realm,Crematorium,CRM00,External Contractor & Operator,742,129.96,Cannon Hygiene Ltd,100436,30/08/2018,10262406,TC,,,209918933,PN,1231.06,43314
Environment and Public Realm,Domestic Waste Collection/Recycling,REF00,External Contractor & Operator,742,492.88,Cannon Hygiene Ltd,100436,16/08/2018,10262408,TC,,,209918933,PI,591.46,43314
Environment and Public Realm,Domestic Waste Collection/Recycling,REF00,Vehicle Repair and Maintenance,200,223.65,Dennis Eagle Ltd,100559,02/08/2018,10261977,TC,,,272 4968 27,PN,581.76,43304
Environment and Public Realm,Trade Waste Collection,WWC01,Vehicle Repair and Maintenance,200,74.47,Dennis Eagle Ltd,100559,02/08/2018,10261977,TC,,,272 4968 27,PN,581.76,43304
Environment and Public Realm,Garage,WVR00,Materials,303,186.68,Dennis Eagle Ltd,100559,02/08/2018,10261977,TC,,,272 4968 27,PN,581.76,43304
Environment and Public Realm,Domestic Waste Collection/Recycling,REF00,Vehicle Repair and Maintenance,200,262.35,Dennis Eagle Ltd,100559,16/08/2018,10262234,TC,,,272 4968 27,PN,2000.36,43311
Environment and Public Realm,Trade Waste Collection,WWC01,Vehicle Repair and Maintenance,200,21.04,Dennis Eagle Ltd,100559,16/08/2018,10262234,TC,,,272 4968 27,PN,2000.36,43311
Environment and Public Realm,Domestic Waste Collection/Recycling,REF00,Materials,303,1383.58,Dennis Eagle Ltd,100559,16/08/2018,10262234,TC,,,272 4968 27,PN,2000.36,43311
Environment and Public Realm,Domestic Waste Collection/Recycling,REF00,Vehicle Repair and Maintenance,200,-500,Dennis Eagle Ltd,100559,02/08/2018,10262295,TC,,,272 4968 27,PN,-600,43312
Environment and Public Realm,Domestic Waste Collection/Recycling,REF00,Vehicle Repair and Maintenance,200,1208.76,Dennis Eagle Ltd,100559,23/08/2018,10262301,TC,,,272 4968 27,PN,1450.51,43312
Environment and Public Realm,Domestic Waste Collection/Recycling,REF00,Vehicle Repair and Maintenance,200,3863.58,Dennis Eagle Ltd,100559,23/08/2018,10262371,TC,,,272 4968 27,PN,4636.3,43313
Environment and Public Realm,Domestic Waste Collection/Recycling,REF00,Vehicle Repair and Maintenance,200,1524.68,Dennis Eagle Ltd,100559,23/08/2018,10262372,TC,,,272 4968 27,PN,1829.62,43313
Environment and Public Realm,Domestic Waste Collection/Recycling,REF00,Materials,303,-1231.96,Dennis Eagle Ltd,100559,16/08/2018,10262455,TC,,,272 4968 27,PN,-1478.35,43318
Environment and Public Realm,Domestic Waste Collection/Recycling,REF00,Vehicle Repair and Maintenance,200,695.82,Dennis Eagle Ltd,100559,23/08/2018,10262710,TC,,,272 4968 27,PN,1286.65,43326
Environment and Public Realm,Household Green Waste Collections,REF06,Vehicle Repair and Maintenance,200,376.39,Dennis Eagle Ltd,100559,23/08/2018,10262710,TC,,,272 4968 27,PN,1286.65,43326
Environment and Public Realm,Domestic Waste Collection/Recycling,REF00,Vehicle Repair and Maintenance,200,783.79,Dennis Eagle Ltd,100559,23/08/2018,10262775,TC,,,272 4968 27,PN,940.55,43327
Outside portfolio expenditure,Balance Sheet,BS,Revenue Section Agreements,9865,46843.61,Dunchurch Parish Council,100564,02/08/2018,10262298,TC,,,,PN,46843.61,43312
Corporate Resources,Corporate Property R&M,CPA01,R&M External Contractors,100,582,Dunchurch Services (Rugby) Ltd,100565,16/08/2018,10262714,CS,,2693688,623535748,PN,698.4,43326
Corporate Resources,Corporate Property Central Utilities,CPA02,Gas,131,705.6,ESPO,100641,30/08/2018,10262725,TC,,,705180561,PN,846.72,43327
Corporate Resources,Corporate Property Central Utilities,CPA02,Gas,131,529.32,ESPO,100641,30/08/2018,10262726,TC,,,705180561,PN,555.79,43327
Housing Revenue Account,Albert Square AP,AGP20,Gas,131,567.37,ESPO,100641,16/08/2018,10262728,TC,,,705180561,PN,680.84,43327
Housing Revenue Account,Lesley Souter House AP,AGP16,Gas,131,422.97,ESPO,100641,16/08/2018,10262729,TC,,,705180561,PN,507.56,43327
Housing Revenue Account,Tanser Court AP,AGP17,Gas,131,435.54,ESPO,100641,16/08/2018,10262730,TC,,,705180561,PN,522.65,43327
Environment and Public Realm,Crematorium,CRM00,Gas,131,1271.29,ESPO,100641,16/08/2018,10262749,TC,,,705180561,PN,1525.55,43327
Capital Housing Revenue Account,Disabled Adaptations,HCR01,Capital Contract Payments,5000,2366.69,Nationwide Windows Ltd,100808,02/08/2018,10262285,CS,,2025613,792405224,PN,2840.03,43312
Environment and Public Realm,Highways,HIG20,Vehicle Repair and Maintenance,200,1488.22,Ford & Slater,100817,23/08/2018,10262529,TC,,,565 7608 07,PN,1785.86,43319
Environment and Public Realm,Garage,WVR00,Materials,303,1058.2,Fuchs Lubricants (UK) Plc,100832,02/08/2018,10262154,TC,,2412689,284166443,PN,1269.84,43307
Housing Revenue Account,Housing Management,MAN22,Other Miscellaneous Expenses,444,500,David Gilkes & Sons Ltd,100913,02/08/2018,10262090,TC,,,418613652,PN,600,43306
Growth and Investment,Visitor Centre,VSC00,Purchases for Resale,305,993.2,Grays of Cambridge (Intl) Limited,100949,30/08/2018,10263039,TC,,,213436495,PI,1191.84,43335
Corporate Resources,Town Hall,OFF00,New Equipment,300,874.8,IE Office Equipment Ltd,101114,02/08/2018,10262213,CS,,,661544339,PI,1049.76,43308
Corporate Resources,Town Hall,OFF00,Furniture,302,443.08,IE Office Equipment Ltd,101114,23/08/2018,10262889,CS,,,661544339,PN,531.7,43332
Housing Revenue Account,Unplanned Maintenance and Repair,UMR00,External Contractor & Operator,742,497.43,Clews Recycling Limited,101213,02/08/2018,10262179,TC,,,747316619,PN,596.92,43308
Environment and Public Realm,Street Cleansing General,STC00,External Contractor & Operator,742,10,Clews Recycling Limited,101213,23/08/2018,10262336,TC,,,747316619,PN,1510.7,43313
Housing Revenue Account,Unplanned Maintenance and Repair,UMR00,External Contractor & Operator,742,1248.92,Clews Recycling Limited,101213,23/08/2018,10262336,TC,,,747316619,PN,1510.7,43313
Housing Revenue Account,Unplanned Maintenance and Repair,UMR00,External Contractor & Operator,742,725.42,Clews Recycling Limited,101213,23/08/2018,10262794,TC,,,747316619,PN,870.5,43327
Communities and Homes,Maintenance of Customer Services Systems,CIS21,Software Maintenance,374,630,Ncc Services Limited,101374,02/08/2018,10262196,TC,,2802141,732334556,PN,756,43308
Growth and Investment,Visitor Centre,VSC00,Events Tickets - Standard Rated,1404,1122.02,National Express Ltd,101392,09/08/2018,10262345,TC,,,487038714,PN,1122.02,43313
Housing Revenue Account,Sheltered Housing,AGP00,Telephone Expenses,371,247.08,EE Ltd t/a Orange Personal Communications,101404,16/08/2018,10262701,TC,,,529221751,PN,5198.96,43326
Environment and Public Realm,Crematorium,CRM00,Telephone Expenses,371,23.5,EE Ltd t/a Orange Personal Communications,101404,16/08/2018,10262701,TC,,,529221751,PN,5198.96,43326
Housing Revenue Account,Supervision and Management General,MAN00,Telephone Expenses,371,135.33,EE Ltd t/a Orange Personal Communications,101404,16/08/2018,10262701,TC,,,529221751,PN,5198.96,43326
Housing Revenue Account,Housing Management,MAN22,Telephone Expenses,371,11.75,EE Ltd t/a Orange Personal Communications,101404,16/08/2018,10262701,TC,,,529221751,PN,5198.96,43326
Housing Revenue Account,Property Maintenance,MAN23,Telephone Expenses,371,228.52,EE Ltd t/a Orange Personal Communications,101404,16/08/2018,10262701,TC,,,529221751,PN,5198.96,43326
Housing Revenue Account,Voids & Allocations Team,MAN24,Telephone Expenses,371,58,EE Ltd t/a Orange Personal Communications,101404,16/08/2018,10262701,TC,,,529221751,PN,5198.96,43326
Housing Revenue Account,Multi-Storey Flats,MSF00,Telephone Expenses,371,11.75,EE Ltd t/a Orange Personal Communications,101404,16/08/2018,10262701,TC,,,529221751,PN,5198.96,43326
Communities and Homes,Mobile telephones,TEL03,Telephone Expenses,371,2677.91,EE Ltd t/a Orange Personal Communications,101404,16/08/2018,10262701,TC,,,529221751,PN,5198.96,43326
Housing Revenue Account,Unplanned Maintenance and Repair,UMR00,Telephone Expenses,371,927.97,EE Ltd t/a Orange Personal Communications,101404,16/08/2018,10262701,TC,,,529221751,PN,5198.96,43326
Housing Revenue Account,Repairs and Maintenance - Void works,UMR09,Telephone Expenses,371,13.32,EE Ltd t/a Orange Personal Communications,101404,16/08/2018,10262701,TC,,,529221751,PN,5198.96,43326
Environment and Public Realm,Sewage Disposal Plant,SDP00,R&M External Contractors,100,520.28,PJT Pumping Services,101438,02/08/2018,10262188,TC,,,618143943,PN,624.34,43308
Environment and Public Realm,Sewage Disposal Plant,SDP00,Maintenance of Equipment,301,1320,PJT Pumping Services,101438,16/08/2018,10262488,TC,,,618143943,PI,2088,43318
Environment and Public Realm,Sewage Disposal Plant,SDP00,Materials,303,420,PJT Pumping Services,101438,16/08/2018,10262488,TC,,,618143943,PI,2088,43318
Environment and Public Realm,Sewage Disposal Plant,SDP00,R&M External Contractors,100,520.28,PJT Pumping Services,101438,30/08/2018,10263037,TC,,,618143943,PN,624.34,43335
Environment and Public Realm,Parks,PKS00,R&M External Contractors,100,512.52,PJT Pumping Services,101438,30/08/2018,10263085,TC,,,618143943,PN,615.02,43336
Environment and Public Realm,Parks,PKS00,Maintenance of Equipment,301,1310,Post To Post Fencing,101490,02/08/2018,10262082,CS,,,7729350133,PI,3414,43305
Environment and Public Realm,Parks,PKS00,External Contractor & Operator,742,1500,Post To Post Fencing,101490,02/08/2018,10262082,CS,,,7729350133,PI,3414,43305
Environment and Public Realm,Section 106 Grounds Maintenance,PKS16,External Contractor & Operator,742,35,Post To Post Fencing,101490,02/08/2018,10262082,CS,,,7729350133,PI,3414,43305
Environment and Public Realm,Parks,PKS00,External Contractor & Operator,742,700,Post To Post Fencing,101490,23/08/2018,10262946,CS,,,7729350133,PI,840,43333
Capital Housing Revenue Account,Kitchen Modifications,HIK10,Capital Contract Payments,5000,2297,Reeds Plumbing & Heating Contractors Ltd,101504,02/08/2018,10261422,CS,,4468782,418 5847 32,PN,61466.64,43285
Capital Housing Revenue Account,Bathroom Modifications,HIS01,Capital Contract Payments,5000,48925.2,Reeds Plumbing & Heating Contractors Ltd,101504,02/08/2018,10261422,CS,,4468782,418 5847 32,PN,61466.64,43285
Housing Revenue Account,Repairs and Maintenance - Void works,UMR09,R&M External Contractors,100,975,Reeds Plumbing & Heating Contractors Ltd,101504,02/08/2018,10262286,CS,,4468782,418 5847 32,PN,35350.63,43312
Housing Revenue Account,Miscellaneous Unplanned Maintenance and Repair,UMR17,R&M External Contractors,100,780,Reeds Plumbing & Heating Contractors Ltd,101504,02/08/2018,10262286,CS,,4468782,418 5847 32,PN,35350.63,43312
Capital Housing Revenue Account,Bathroom Modifications,HIS01,Capital Contract Payments,5000,27703.86,Reeds Plumbing & Heating Contractors Ltd,101504,02/08/2018,10262286,CS,,4468782,418 5847 32,PN,35350.63,43312
Capital Housing Revenue Account,Disabled Adaptations,HCR01,Capital Contract Payments,5000,3476.26,Reeds Plumbing & Heating Contractors Ltd,101504,09/08/2018,10262575,CS,,4468782,418 5847 32,PN,22456.58,43320
Capital Housing Revenue Account,Bathroom Modifications,HIS01,Capital Contract Payments,5000,15237.56,Reeds Plumbing & Heating Contractors Ltd,101504,09/08/2018,10262575,CS,,4468782,418 5847 32,PN,22456.58,43320
Housing Revenue Account,Repairs and Maintenance - Void works,UMR09,R&M External Contractors,100,745,Reeds Plumbing & Heating Contractors Ltd,101504,16/08/2018,10262669,CS,,4468782,418 5847 32,PN,6925.51,43325
Capital Housing Revenue Account,Bathroom Modifications,HIS01,Capital Contract Payments,5000,5026.26,Reeds Plumbing & Heating Contractors Ltd,101504,16/08/2018,10262669,CS,,4468782,418 5847 32,PN,6925.51,43325
Housing Revenue Account,Repairs and Maintenance - Void works,UMR09,R&M External Contractors,100,2328,Reeds Plumbing & Heating Contractors Ltd,101504,30/08/2018,10263196,CS,,4468782,418 5847 32,PN,32148.72,43342
Capital Housing Revenue Account,Bathroom Modifications,HIS01,Capital Contract Payments,5000,24462.6,Reeds Plumbing & Heating Contractors Ltd,101504,30/08/2018,10263196,CS,,4468782,418 5847 32,PN,32148.72,43342
Capital Housing Revenue Account,Biart Place - Capital,BIA00,Capital Compensation Payments,5010,945.44,Rugby Borough Council,101516,02/08/2018,10262164,NT,,,,PN,945.44,43307
Capital Housing Revenue Account,Biart Place - Capital,BIA00,Capital Compensation Payments,5010,540.34,Rugby Borough Council,101516,09/08/2018,10262501,NT,,,,PN,540.34,43319
Capital Housing Revenue Account,Biart Place - Capital,BIA00,Capital Compensation Payments,5010,4831.7,Rugby Borough Council,101516,16/08/2018,10262613,NT,,,,PN,4831.7,43321
Capital Housing Revenue Account,Biart Place - Capital,BIA00,Capital Compensation Payments,5010,1830.84,Rugby Borough Council,101516,23/08/2018,10262861,NT,,,,PN,1830.84,43329
Capital Housing Revenue Account,Biart Place - Capital,BIA00,Capital Compensation Payments,5010,1331.31,Rugby Borough Council,101516,23/08/2018,10262890,NT,,,,PN,1331.31,43332
Capital Housing Revenue Account,Biart Place - Capital,BIA00,Capital Compensation Payments,5010,532.28,Rugby Borough Council,101516,23/08/2018,10262938,NT,,,,PN,532.28,43333
Capital Housing Revenue Account,Biart Place - Capital,BIA00,Capital Compensation Payments,5010,1164.78,Rugby Borough Council,101516,30/08/2018,10263044,NT,,,,PN,1164.78,43336
Environment and Public Realm,Domestic Waste Collection/Recycling,REF00,Vehicle Repair and Maintenance,200,465,Rugby Mobile Windscreens,101520,23/08/2018,10262615,TC,,,307407185,PN,558,43321
Outside portfolio expenditure,Balance Sheet,BS,Revenue Section Agreements,9865,6733.75,Ryton On Dunsmore Parish Council,101522,30/08/2018,10263195,NT,,,,PN,6733.75,43342
Growth and Investment,Art Gallery and Museum,AGM00,Postage & Distribution,370,0.67,Royal Mail,101554,02/08/2018,10262020,TC,,,,PN,3159.39,43305
Growth and Investment,Building Control Services,BCS00,Postage & Distribution,370,3.55,Royal Mail,101554,02/08/2018,10262020,TC,,,,PN,3159.39,43305
Communities and Homes,Community Advice & Support Team,CAS00,Postage & Distribution,370,163.05,Royal Mail,101554,02/08/2018,10262020,TC,,,,PN,3159.39,43305
Communities and Homes,Central Business Support Services,CSS15,Postage & Distribution,370,543.65,Royal Mail,101554,02/08/2018,10262020,TC,,,,PN,3159.39,43305
Corporate Resources,Council Tax and NNDR Collection,CTX01,Postage & Distribution,370,194.59,Royal Mail,101554,02/08/2018,10262020,TC,,,,PN,3159.39,43305
Executive Director Office,Electoral Registration,ERG00,Postage & Distribution,370,84.06,Royal Mail,101554,02/08/2018,10262020,TC,,,,PN,3159.39,43305
Housing Revenue Account,Supervision and Management General,MAN00,Postage & Distribution,370,1430.26,Royal Mail,101554,02/08/2018,10262020,TC,,,,PN,3159.39,43305
Growth and Investment,Planning General/Income,PLN00,Postage & Distribution,370,107.04,Royal Mail,101554,02/08/2018,10262020,TC,,,,PN,3159.39,43305
Environment and Public Realm,Domestic Waste Collection/Recycling,REF00,Postage & Distribution,370,5.2,Royal Mail,101554,02/08/2018,10262020,TC,,,,PN,3159.39,43305
Environment and Public Realm,Household Green Waste Collections,REF06,Postage & Distribution,370,31.6,Royal Mail,101554,02/08/2018,10262020,TC,,,,PN,3159.39,43305
Housing Revenue Account,Unplanned Maintenance and Repair,UMR00,Postage & Distribution,370,0.7,Royal Mail,101554,02/08/2018,10262020,TC,,,,PN,3159.39,43305
Growth and Investment,Visitor Centre,VSC00,Postage & Distribution,370,68.65,Royal Mail,101554,02/08/2018,10262020,TC,,,,PN,3159.39,43305
Growth and Investment,Art Gallery and Museum,AGM00,Postage & Distribution,370,0.62,Royal Mail,101554,02/08/2018,10262233,TC,,,,PN,1286.62,43311
Growth and Investment,Building Control Services,BCS00,Postage & Distribution,370,2.58,Royal Mail,101554,02/08/2018,10262233,TC,,,,PN,1286.62,43311
Communities and Homes,Community Advice & Support Team,CAS00,Postage & Distribution,370,212.47,Royal Mail,101554,02/08/2018,10262233,TC,,,,PN,1286.62,43311
Communities and Homes,Central Business Support Services,CSS15,Postage & Distribution,370,185.14,Royal Mail,101554,02/08/2018,10262233,TC,,,,PN,1286.62,43311
Corporate Resources,Council Tax and NNDR Collection,CTX01,Postage & Distribution,370,265.78,Royal Mail,101554,02/08/2018,10262233,TC,,,,PN,1286.62,43311
Executive Director Office,Electoral Registration,ERG00,Postage & Distribution,370,44.15,Royal Mail,101554,02/08/2018,10262233,TC,,,,PN,1286.62,43311
Housing Revenue Account,Supervision and Management General,MAN00,Postage & Distribution,370,155.29,Royal Mail,101554,02/08/2018,10262233,TC,,,,PN,1286.62,43311
Growth and Investment,Planning General/Income,PLN00,Postage & Distribution,370,158.63,Royal Mail,101554,02/08/2018,10262233,TC,,,,PN,1286.62,43311
Environment and Public Realm,Domestic Waste Collection/Recycling,REF00,Postage & Distribution,370,2.18,Royal Mail,101554,02/08/2018,10262233,TC,,,,PN,1286.62,43311
Environment and Public Realm,Household Green Waste Collections,REF06,Postage & Distribution,370,38.8,Royal Mail,101554,02/08/2018,10262233,TC,,,,PN,1286.62,43311
Housing Revenue Account,Unplanned Maintenance and Repair,UMR00,Postage & Distribution,370,4.4,Royal Mail,101554,02/08/2018,10262233,TC,,,,PN,1286.62,43311
Growth and Investment,Visitor Centre,VSC00,Postage & Distribution,370,2.36,Royal Mail,101554,02/08/2018,10262233,TC,,,,PN,1286.62,43311
Growth and Investment,Art Gallery and Museum,AGM00,Postage & Distribution,370,12.93,Royal Mail,101554,23/08/2018,10262642,TC,,,,PN,2255.5,43322
Growth and Investment,Building Control Services,BCS00,Postage & Distribution,370,4.08,Royal Mail,101554,23/08/2018,10262642,TC,,,,PN,2255.5,43322
Communities and Homes,Community Advice & Support Team,CAS00,Postage & Distribution,370,309.56,Royal Mail,101554,23/08/2018,10262642,TC,,,,PN,2255.5,43322
Communities and Homes,Central Business Support Services,CSS15,Postage & Distribution,370,361.83,Royal Mail,101554,23/08/2018,10262642,TC,,,,PN,2255.5,43322
Corporate Resources,Council Tax and NNDR Collection,CTX01,Postage & Distribution,370,678.9,Royal Mail,101554,23/08/2018,10262642,TC,,,,PN,2255.5,43322
Executive Director Office,Electoral Registration,ERG00,Postage & Distribution,370,94.44,Royal Mail,101554,23/08/2018,10262642,TC,,,,PN,2255.5,43322
Housing Revenue Account,Supervision and Management General,MAN00,Postage & Distribution,370,144.51,Royal Mail,101554,23/08/2018,10262642,TC,,,,PN,2255.5,43322
Growth and Investment,Planning General/Income,PLN00,Postage & Distribution,370,209.05,Royal Mail,101554,23/08/2018,10262642,TC,,,,PN,2255.5,43322
Environment and Public Realm,Domestic Waste Collection/Recycling,REF00,Postage & Distribution,370,6.29,Royal Mail,101554,23/08/2018,10262642,TC,,,,PN,2255.5,43322
Environment and Public Realm,Household Green Waste Collections,REF06,Postage & Distribution,370,54.98,Royal Mail,101554,23/08/2018,10262642,TC,,,,PN,2255.5,43322
Housing Revenue Account,Unplanned Maintenance and Repair,UMR00,Postage & Distribution,370,1.6,Royal Mail,101554,23/08/2018,10262642,TC,,,,PN,2255.5,43322
Growth and Investment,Visitor Centre,VSC00,Postage & Distribution,370,1.6,Royal Mail,101554,23/08/2018,10262642,TC,,,,PN,2255.5,43322
Growth and Investment,Art Gallery and Museum,AGM00,Postage & Distribution,370,8.65,Royal Mail,101554,23/08/2018,10262856,TC,,,,PN,2050.65,43329
Growth and Investment,Building Control Services,BCS00,Postage & Distribution,370,1.69,Royal Mail,101554,23/08/2018,10262856,TC,,,,PN,2050.65,43329
Communities and Homes,Community Advice & Support Team,CAS00,Postage & Distribution,370,178.82,Royal Mail,101554,23/08/2018,10262856,TC,,,,PN,2050.65,43329
Communities and Homes,Central Business Support Services,CSS15,Postage & Distribution,370,381.2,Royal Mail,101554,23/08/2018,10262856,TC,,,,PN,2050.65,43329
Corporate Resources,Council Tax and NNDR Collection,CTX01,Postage & Distribution,370,295.57,Royal Mail,101554,23/08/2018,10262856,TC,,,,PN,2050.65,43329
Executive Director Office,Electoral Registration,ERG00,Postage & Distribution,370,51.46,Royal Mail,101554,23/08/2018,10262856,TC,,,,PN,2050.65,43329
Housing Revenue Account,Supervision and Management General,MAN00,Postage & Distribution,370,60.45,Royal Mail,101554,23/08/2018,10262856,TC,,,,PN,2050.65,43329
Growth and Investment,Planning General/Income,PLN00,Postage & Distribution,370,699.2,Royal Mail,101554,23/08/2018,10262856,TC,,,,PN,2050.65,43329
Environment and Public Realm,Domestic Waste Collection/Recycling,REF00,Postage & Distribution,370,8.64,Royal Mail,101554,23/08/2018,10262856,TC,,,,PN,2050.65,43329
Environment and Public Realm,Household Green Waste Collections,REF06,Postage & Distribution,370,21.69,Royal Mail,101554,23/08/2018,10262856,TC,,,,PN,2050.65,43329
Housing Revenue Account,Unplanned Maintenance and Repair,UMR00,Postage & Distribution,370,0.4,Royal Mail,101554,23/08/2018,10262856,TC,,,,PN,2050.65,43329
Growth and Investment,Visitor Centre,VSC00,Postage & Distribution,370,1.3,Royal Mail,101554,23/08/2018,10262856,TC,,,,PN,2050.65,43329
Environment and Public Realm,Parks,PKS00,Maintenance of Equipment,301,1045,Hags-smp Ltd,101562,16/08/2018,10262487,CS,,908021,GB207853851,PI,1254,43318
Housing Revenue Account,Lesley Souter House AP,AGP16,Water Services,143,579.7,Water Plus,101610,02/08/2018,10262185,TC,,,,PN,579.7,43308
Housing Revenue Account,Lesley Souter House AP,AGP16,Water Services,143,519.71,Water Plus,101610,16/08/2018,10262663,TC,,,,PN,519.71,43325
Environment and Public Realm,Crematorium,CRM00,Water Services,143,635.09,Water Plus,101610,30/08/2018,10263126,TC,,,,PN,635.09,43341
Environment and Public Realm,Domestic Waste Collection/Recycling,REF00,Tyres,205,1469.22,HI-Q Motorway,101736,02/08/2018,10262289,TC,,,100159429,PN,2880.77,43312
Environment and Public Realm,Street Cleansing General,STC00,Tyres,205,321.9,HI-Q Motorway,101736,02/08/2018,10262289,TC,,,100159429,PN,2880.77,43312
Environment and Public Realm,Trade Waste Collection,WWC01,Tyres,205,609.52,HI-Q Motorway,101736,02/08/2018,10262289,TC,,,100159429,PN,2880.77,43312
Environment and Public Realm,Domestic Waste Collection/Recycling,REF00,Tyres,205,1123.33,HI-Q Motorway,101736,16/08/2018,10262479,TC,,,100159429,PN,1769.2,43318
Environment and Public Realm,Street Cleansing General,STC00,Tyres,205,58,HI-Q Motorway,101736,16/08/2018,10262479,TC,,,100159429,PN,1769.2,43318
Environment and Public Realm,Trade Waste Collection,WWC01,Tyres,205,293,HI-Q Motorway,101736,16/08/2018,10262479,TC,,,100159429,PN,1769.2,43318
Environment and Public Realm,Trade Waste Collection,WWC01,Materials,303,1137,Egbert H. Taylor & Co Ltd,101741,30/08/2018,10262947,TC,,718441,695 2674 87,PI,1364.4,43333
Environment and Public Realm,Domestic Waste Collection/Recycling,REF00,Vehicle Repair and Maintenance,200,351.39,Terberg Matec UK,101761,16/08/2018,10262294,TC,,,560 8785 10,PN,647.23,43312
Environment and Public Realm,Trade Waste Collection,WWC01,Vehicle Repair and Maintenance,200,187.97,Terberg Matec UK,101761,16/08/2018,10262294,TC,,,560 8785 10,PN,647.23,43312
Environment and Public Realm,Domestic Waste Collection/Recycling,REF00,Vehicle Repair and Maintenance,200,476.62,Terberg Matec UK,101761,16/08/2018,10262452,TC,,,560 8785 10,PN,571.94,43318
Environment and Public Realm,Domestic Waste Collection/Recycling,REF00,Vehicle Repair and Maintenance,200,286.71,Terberg Matec UK,101761,23/08/2018,10262631,TC,,,560 8785 10,PN,578.61,43322
Environment and Public Realm,Trade Waste Collection,WWC01,Vehicle Repair and Maintenance,200,195.46,Terberg Matec UK,101761,23/08/2018,10262631,TC,,,560 8785 10,PN,578.61,43322
Environment and Public Realm,Domestic Waste Collection/Recycling,REF00,Vehicle Repair and Maintenance,200,177.37,Terberg Matec UK,101761,23/08/2018,10262796,TC,,,560 8785 10,PN,809.35,43327
Environment and Public Realm,Household Green Waste Collections,REF06,Vehicle Repair and Maintenance,200,497.09,Terberg Matec UK,101761,23/08/2018,10262796,TC,,,560 8785 10,PN,809.35,43327
Environment and Public Realm,Domestic Waste Collection/Recycling,REF00,Vehicle Repair and Maintenance,200,762.2,Terberg Matec UK,101761,23/08/2018,10262833,TC,,,560 8785 10,PN,914.64,43328
Environment and Public Realm,Domestic Waste Collection/Recycling,REF00,Vehicle Repair and Maintenance,200,1518.54,Terberg Matec UK,101761,23/08/2018,10262879,TC,,,560 8785 10,PN,1822.25,43332
Environment and Public Realm,Cemeteries General,CEM00,External Contractor & Operator,742,1332.8,Warwickshire County Council,101893,02/08/2018,10262208,TC,,,272426659,PN,2640,43308
Environment and Public Realm,Parks,PKS00,External Contractor & Operator,742,867.2,Warwickshire County Council,101893,02/08/2018,10262208,TC,,,272426659,PN,2640,43308
Environment and Public Realm,Cemeteries General,CEM00,External Contractor & Operator,742,400,Warwickshire County Council,101893,23/08/2018,10262869,TC,,,272426659,PN,16440,43329
Environment and Public Realm,Parks,PKS00,External Contractor & Operator,742,13300,Warwickshire County Council,101893,23/08/2018,10262869,TC,,,272426659,PN,16440,43329
Executive Director Office,"Communications, Consultation and Information Team",BTR20,Public Notices,382,432,Bullivant Media Ltd,101937,02/08/2018,10262211,TC,,,971117625,PI,518.4,43308
Executive Director Office,"Communications, Consultation and Information Team",BTR20,Public Notices,382,570,Bullivant Media Ltd,101937,23/08/2018,10262863,TC,,,971117625,PI,684,43329
Growth and Investment,AGM Exhibitions/Outreach,AGM02,Other Miscellaneous Expenses,444,707,Moseley Signs,107594,02/08/2018,10261726,TC,,,273211976,PI,848.4,43294
Growth and Investment,Art Gallery and Museum,AGM00,Development Activities,450,2000,Live & Local Ltd,108138,30/08/2018,10262972,TC,,,,PN,2000,43334
Communities and Homes,CL Grants,CGS00,Grants To Voluntary Organisations,720,572,Monks Kirby Village hall,108269,23/08/2018,10262755,TC,,,,PN,572,43327
Environment and Public Realm,Domestic Waste Collection/Recycling,REF00,Other Agencies,734,2731.25,Environment Agency,109492,23/08/2018,10262805,TC,,,662490134,PN,2731.25,43327
Environment and Public Realm,Parks,PKS00,Materials,303,466.5,Boughton Loam Limited,110360,23/08/2018,10262845,TC,,,425600284,PI,559.8,43328
Housing Revenue Account,Electrical maintenance,UMR10,R&M External Contractors,100,2400,Croxford Electrical Ltd,110451,02/08/2018,10262032,CS,,7751876,307 4408 76,PN,2880,43305
Housing Revenue Account,Electrical maintenance,UMR10,R&M External Contractors,100,2400,Croxford Electrical Ltd,110451,02/08/2018,10262033,CS,,7751876,307 4408 76,PN,2880,43305
Housing Revenue Account,Electrical maintenance,UMR10,R&M External Contractors,100,2400,Croxford Electrical Ltd,110451,02/08/2018,10262034,CS,,7751876,307 4408 76,PN,2880,43305
Communities and Homes,Rewiring - Ashwood Court,HCE34,R&M External Contractors,100,2680.25,Croxford Electrical Ltd,110451,09/08/2018,10262524,CS,,7751876,307 4408 76,PN,3216.3,43319
Growth and Investment,AGM Exhibitions/Outreach,AGM02,New Equipment,300,675,Display Sense Ltd,111215,02/08/2018,10262001,TC,,1389049,455970710,PI,810,43305
Growth and Investment,Building Control Services,BCS00,Payments to Other Local Authorities,710,11554.36,Warwick District Council,111228,23/08/2018,10262931,TC,,,273 4289 41,PN,13865.23,43333
Environment and Public Realm,Garage,WVR00,Materials,303,520,Vision Techniques (UK) LTD,111526,02/08/2018,10262198,TC,,,712562946,PN,624,43308
Housing Revenue Account,Supervision and Management General,MAN00,Tenancy Sustainment,456,2793,Experian Ltd,112302,09/08/2018,10262296,TC,,,145899025,PN,3351.6,43312
Capital Communities and Homes,New licensing system,CMP37,Software Purchase,373,14900,Civica UK Ltd,112724,16/08/2018,10262307,TC,,1909454,391171065,PI,17880,43312
Capital Communities and Homes,ICT Renewal Programme,CMP00,IT Capital Expenditure,5025,5440,Civica UK Ltd,112724,23/08/2018,10262657,TC,,1909454,391171065,PI,6528,43322
Corporate Resources,Council Tax and NNDR Collection,CTX01,Postage & Distribution,370,640,Civica UK Ltd,112724,16/08/2018,10262658,TC,,1909454,391171065,PI,768,43322
Communities and Homes,Maintenance of Customer Services Systems,CIS21,Software Maintenance,374,1589.43,Civica UK Ltd,112724,16/08/2018,10262660,TC,,1909454,391171065,PI,1907.32,43322
Growth and Investment,Grants and Subscriptions,LGS00,Grants To Voluntary Organisations,720,900,Rugby St Andrews RFC,114165,16/08/2018,10262668,TC,,,,PN,900,43325
Capital Communities and Homes,ICT refresh programme - Infrastructure,CMP01,IT Capital Expenditure,5025,2998.5,Capita Software Services,119406,02/08/2018,10262169,TC,,,,PI,3598.2,43307
Capital Communities and Homes,ICT refresh programme - Infrastructure,CMP01,IT Capital Expenditure,5025,1998.5,Capita Software Services,119406,02/08/2018,10262170,TC,,,,PI,2398.2,43307
Communities and Homes,Maintenance of Customer Services Systems,CIS21,Software Maintenance,374,750,Capita Software Services,119406,16/08/2018,10262253,TC,,,,PN,900,43311
Corporate Resources,Human Resources Centralised Services,RES31,Training fees,11,2475,Nelson Training,120218,02/08/2018,10262199,TC,,,781446904,PN,2970,43308
Communities and Homes,Maintenance of Customer Services Systems,CIS21,Software Maintenance,374,7163,Northgate Public Services (UK)  Ltd,121606,02/08/2018,10262010,TC,,968498,207588545,PN,8595.6,43305
Communities and Homes,Maintenance of Customer Services Systems,CIS21,Software Maintenance,374,11025.2,Northgate Public Services (UK)  Ltd,121606,02/08/2018,10262011,TC,,968498,207588545,PN,13230.24,43305
Communities and Homes,Maintenance of Customer Services Systems,CIS21,Software Maintenance,374,812.88,Northgate Public Services (UK)  Ltd,121606,30/08/2018,10262591,TC,,968498,207588545,PN,975.46,43321
Environment and Public Realm,Grounds Maintenance,PKS20,New Equipment,300,490,Rigby Taylor Ltd,123342,02/08/2018,10262172,TC,,,354646243,PI,588,43307
Environment and Public Realm,Parks,PKS00,Materials,303,1092,Rigby Taylor Ltd,123342,23/08/2018,10262313,TC,,,354646243,PI,1226.4,43312
Capital Environment and Public Realm,Purchase of Waste Bins,PWB00,Capital Contract Payments,5000,13950,SSI Schaefer Ltd,123543,02/08/2018,10262314,TC,,,,PI,16740,43312
Capital Environment and Public Realm,Purchase of Waste Bins,PWB00,Capital Contract Payments,5000,13632.3,SSI Schaefer Ltd,123543,16/08/2018,10262386,TC,,,,PI,16358.76,43313
Environment and Public Realm,Gypsy & Traveller Enforcement,TRA00,Materials,303,1354.14,Mike Bs Security Locksmith Ltd,123947,16/08/2018,10262652,TC,,3680713,566125244,PN,1624.97,43322
Growth and Investment,Visitor Centre,VSC00,Purchases for Resale,305,1010.88,Emblem Print Products Ltd,124385,02/08/2018,10262084,TC,,,507885417,PI,1213.06,43305
Growth and Investment,Visitor Centre,VSC00,Purchases for Resale,305,465,Emblem Print Products Ltd,124385,02/08/2018,10262328,TC,,,507885417,PI,558,43313
Environment and Public Realm,Garage,WVR00,Materials,303,438.98,Shell U.K. Oil Products Limited,125672,16/08/2018,10262518,TC,,,235 763 255,PN,526.77,43319
Housing Revenue Account,Unplanned Maintenance and Repair,UMR00,External Contractor & Operator,742,603.75,M P Hudson & Son,129334,16/08/2018,10262806,CS,,,770861806,PN,603.75,43327
Environment and Public Realm,Regulatory Services,REG00,New Equipment,300,6.58,Lyreco,129956,02/08/2018,10262377,TC,,,927265703,PI,578.45,43313
Communities and Homes,Central Business Support Services,CSS15,Stationery Supplies,350,475.46,Lyreco,129956,02/08/2018,10262377,TC,,,927265703,PI,578.45,43313
Capital Housing Revenue Account,Heating Upgrades,HIM01,Capital Contract Payments,5000,936,Cadent Gas Ltd,130213,23/08/2018,10262795,TC,,2006000,243133345,PN,936,43327
Capital Housing Revenue Account,Heating Upgrades,HIM01,Capital Contract Payments,5000,612,Cadent Gas Ltd,130213,23/08/2018,10262807,TC,,2006000,243133345,PN,612,43327
Growth and Investment,Visitor Centre,VSC00,Publicity & Marketing,377,425,Beau Business Media Limited,130805,16/08/2018,10262709,TC,,3550972,696131223,PN,510,43326
Executive Director Office,"Communications, Consultation and Information Team",BTR20,Publicity & Marketing,377,5750,Touch Broadcasting Co Ltd T/A Rugby FM,131249,02/08/2018,10261940,TC,,,792071032,PN,6900,43301
Environment and Public Realm,Gypsy & Traveller Enforcement,TRA00,External Contractor & Operator,742,1620,I D Welding & Fabrications,131407,02/08/2018,10262003,CS,,,687567859,PI,1944,43305
Environment and Public Realm,Gypsy & Traveller Enforcement,TRA00,External Contractor & Operator,742,1400,I D Welding & Fabrications,131407,30/08/2018,10262950,CS,,,687567859,PI,1680,43333
Environment and Public Realm,Parks,PKS00,External Contractor & Operator,742,490,I D Welding & Fabrications,131407,30/08/2018,10262951,CS,,,687567859,PI,588,43333
Environment and Public Realm,Gypsy & Traveller Enforcement,TRA00,External Contractor & Operator,742,540,I D Welding & Fabrications,131407,30/08/2018,10262953,CS,,,687567859,PI,648,43333
Environment and Public Realm,Car Parks General,CPK01,Cash Collection,744,1074.08,Jade Security Services Ltd,131711,09/08/2018,10262466,TC,,,642505654,PN,1288.9,43318
Capital Housing Revenue Account,Disabled Adaptations,HCR01,Capital Contract Payments,5000,2705,D K Builders,131946,23/08/2018,10262928,TC,,9067282,890892572,PN,3246,43333
Communities and Homes,CAST - Bed & Breakfast,CAS01,Bed and Breakfast Temporary Accommodation,146,680,Personal Redacted Data,132033,02/08/2018,10262258,TC,,,,PN,680,43311
Communities and Homes,CAST - Bed & Breakfast,CAS01,Bed and Breakfast Temporary Accommodation,146,630,Personal Redacted Data,132033,16/08/2018,10262622,TC,,,,PN,630,43321
Growth and Investment,Grants and Subscriptions,LGS00,Grants To Voluntary Organisations,720,850,Willoughby Cricket Club,132049,16/08/2018,10262651,NT,,,,PN,850,43322
Housing Revenue Account,Miscellaneous Unplanned Maintenance and Repair,UMR17,R&M External Contractors,100,735,RF Digital Ltd,133161,09/08/2018,10262557,TC,,,887307093,PN,882,43320
Growth and Investment,Town Centre CCTV and Management,TVM00,Other Agencies,734,21460.59,Rugby First Ltd - BID,133176,16/08/2018,10262612,TC,,,874675571,PN,25752.71,43321
Growth and Investment,Visitor Centre,VSC00,Events Tickets - Standard Rated,1404,2084.25,Rugby First Ltd - BID,133176,16/08/2018,10262774,TC,,,874675571,PN,2501.1,43327
Housing Revenue Account,Fire Alarm maintenance,UMR13,R&M External Contractors,100,107.86,Sunfish Services Ltd,133886,09/08/2018,10262586,CS,,,845393893,PN,947.11,43320
Housing Revenue Account,Miscellaneous Unplanned Maintenance and Repair,UMR17,R&M External Contractors,100,681.4,Sunfish Services Ltd,133886,09/08/2018,10262586,CS,,,845393893,PN,947.11,43320
Corporate Resources,Human Resources Centralised Services,RES31,Eye Tests & Glasses Contributions,15,850,Specsavers Optical Superstores,134897,16/08/2018,10262720,TC,,,,PN,850,43326
Environment and Public Realm,Highways,HIG20,Materials,303,431.4,Tarmac Trading Ltd,138465,02/08/2018,10262325,TC,,453791,143776102,PI,517.68,43313
Communities and Homes,Universal Credit Support,CAS04,Other Agencies,734,2331,Bedworth Rugby & Nuneaton Citizens Advice Bureau,139552,16/08/2018,10261904,TC,,,,PI,2797.2,43299
Environment and Public Realm,Domestic Waste Collection/Recycling,REF00,Vehicle Repair and Maintenance,200,403.2,Midlands Truck & Van Ltd,140322,23/08/2018,10262895,TC,,7492514,243 6111 93,PN,1370.2,43332
Environment and Public Realm,Trade Waste Collection,WWC01,Vehicle Repair and Maintenance,200,738.63,Midlands Truck & Van Ltd,140322,23/08/2018,10262895,TC,,7492514,243 6111 93,PN,1370.2,43332
Capital Communities and Homes,Payroll/HR scheme,CMP14,IT Capital Expenditure,5025,3057,MHR International UK Ltd,140463,16/08/2018,10260180,TC,,,705850636,PN,3668.4,43245
Capital Communities and Homes,Payroll/HR scheme,CMP14,IT Capital Expenditure,5025,1084.9,MHR International UK Ltd,140463,02/08/2018,10261964,TC,,,705850636,PN,1301.88,43304
Capital Communities and Homes,Payroll/HR scheme,CMP14,IT Capital Expenditure,5025,-509.5,MHR International UK Ltd,140463,16/08/2018,10262719,TC,,,705850636,PN,-611.4,43326
Housing Revenue Account,Multi-Storey Flats,MSF00,External Contractor & Operator,742,49059.36,StoneWall Security Ltd,140775,09/08/2018,10262402,TC,,6587546,937387578,PN,58871.23,43314
Environment and Public Realm,Car Parks General,CPK01,External Contractor & Operator,742,641.7,StoneWall Security Ltd,140775,09/08/2018,10262403,TC,,6587546,937387578,PN,770.04,43314
Housing Revenue Account,Multi-Storey Flats,MSF00,External Contractor & Operator,742,32706.24,StoneWall Security Ltd,140775,09/08/2018,10262404,TC,,6587546,937387578,PN,39247.49,43314
Housing Revenue Account,Solid fuel installations - Churchover,UMR16,R&M External Contractors,100,4200,Elite Sweep Service,141080,02/08/2018,10262277,TC,,,896 2613 85,PN,5040,43312
Housing Revenue Account,Solid fuel servicing,UMR12,R&M External Contractors,100,94,Elite Sweep Service,141080,16/08/2018,10262670,TC,,,896 2613 85,PN,1324.8,43325
Housing Revenue Account,Solid fuel installations - Churchover,UMR16,R&M External Contractors,100,960,Elite Sweep Service,141080,16/08/2018,10262670,TC,,,896 2613 85,PN,1324.8,43325
Capital Housing Revenue Account,Heating Upgrades,HIM01,Capital Contract Payments,5000,50,Elite Sweep Service,141080,16/08/2018,10262670,TC,,,896 2613 85,PN,1324.8,43325
Communities and Homes,CAST - Bed & Breakfast,CAS01,Bed and Breakfast Temporary Accommodation,146,1645,The Holly Bush Inn,141607,30/08/2018,10263022,TC,,,897504477,PN,1645,43335
Communities and Homes,Broadband & internet,TEL01,Telephone Expenses,371,970.25,Zen Internet Ltd,141612,02/08/2018,10261979,TC,,3101568,686049501,PN,1164.3,43304
Environment and Public Realm,Crematorium,CRM00,Telephone Expenses,371,538,Zen Internet Ltd,141612,09/08/2018,10262400,TC,,3101568,686049501,PN,645.6,43314
Communities and Homes,Broadband & internet,TEL01,Telephone Expenses,371,970.25,Zen Internet Ltd,141612,23/08/2018,10262969,TC,,3101568,686049501,PN,1164.3,43334
Environment and Public Realm,Domestic Waste Collection/Recycling,REF00,External Contractor & Operator,742,21852.57,Pure Recycling (Warwick) Limited,141883,16/08/2018,10262435,TC,,,922427047,PN,26223.08,43315
Capital Housing Revenue Account,Biart Place - Capital,BIA00,Capital Compensation Payments,5010,1500,Personal Redacted Data,142235,16/08/2018,10262691,NT,,,,PN,1500,43326
Environment and Public Realm,Grounds Maintenance,PKS20,Agency Staff,3,1026.88,Comensura Limited,142471,02/08/2018,10262109,TC,,4085767,755 3211 45,PN,9136.28,43306
Environment and Public Realm,Domestic Waste Collection/Recycling,REF00,Agency Staff,3,4776.27,Comensura Limited,142471,02/08/2018,10262109,TC,,4085767,755 3211 45,PN,9136.28,43306
Environment and Public Realm,Street Cleansing General,STC00,Agency Staff,3,407,Comensura Limited,142471,02/08/2018,10262109,TC,,4085767,755 3211 45,PN,9136.28,43306
Housing Revenue Account,Unplanned Maintenance and Repair,UMR00,Agency Staff,3,1403.43,Comensura Limited,142471,02/08/2018,10262109,TC,,4085767,755 3211 45,PN,9136.28,43306
Housing Revenue Account,Housing Management,MAN22,Agency Staff,3,1523.49,Comensura Limited,142471,09/08/2018,10262343,TC,,4085767,755 3211 45,PN,3949.11,43313
Environment and Public Realm,Grounds Maintenance,PKS20,Agency Staff,3,986.84,Comensura Limited,142471,09/08/2018,10262343,TC,,4085767,755 3211 45,PN,3949.11,43313
Housing Revenue Account,Unplanned Maintenance and Repair,UMR00,Agency Staff,3,780.57,Comensura Limited,142471,09/08/2018,10262343,TC,,4085767,755 3211 45,PN,3949.11,43313
Housing Revenue Account,Housing Management,MAN22,Agency Staff,3,635.09,Comensura Limited,142471,16/08/2018,10262561,TC,,4085767,755 3211 45,PN,17391.56,43320
Environment and Public Realm,Grounds Maintenance,PKS20,Agency Staff,3,1172.88,Comensura Limited,142471,16/08/2018,10262561,TC,,4085767,755 3211 45,PN,17391.56,43320
Environment and Public Realm,Domestic Waste Collection/Recycling,REF00,Agency Staff,3,11094.09,Comensura Limited,142471,16/08/2018,10262561,TC,,4085767,755 3211 45,PN,17391.56,43320
Environment and Public Realm,Street Cleansing General,STC00,Agency Staff,3,943.63,Comensura Limited,142471,16/08/2018,10262561,TC,,4085767,755 3211 45,PN,17391.56,43320
Housing Revenue Account,Unplanned Maintenance and Repair,UMR00,Agency Staff,3,647.54,Comensura Limited,142471,16/08/2018,10262561,TC,,4085767,755 3211 45,PN,17391.56,43320
Housing Revenue Account,Housing Management,MAN22,Agency Staff,3,757.55,Comensura Limited,142471,23/08/2018,10262765,TC,,4085767,755 3211 45,PN,8729.57,43327
Environment and Public Realm,Grounds Maintenance,PKS20,Agency Staff,3,1189.36,Comensura Limited,142471,23/08/2018,10262765,TC,,4085767,755 3211 45,PN,8729.57,43327
Environment and Public Realm,Domestic Waste Collection/Recycling,REF00,Agency Staff,3,3734.89,Comensura Limited,142471,23/08/2018,10262765,TC,,4085767,755 3211 45,PN,8729.57,43327
Environment and Public Realm,Street Cleansing General,STC00,Agency Staff,3,929.04,Comensura Limited,142471,23/08/2018,10262765,TC,,4085767,755 3211 45,PN,8729.57,43327
Housing Revenue Account,Unplanned Maintenance and Repair,UMR00,Agency Staff,3,663.9,Comensura Limited,142471,23/08/2018,10262765,TC,,4085767,755 3211 45,PN,8729.57,43327
Environment and Public Realm,Grounds Maintenance,PKS20,Agency Staff,3,1269.44,Comensura Limited,142471,30/08/2018,10262965,TC,,4085767,755 3211 45,PN,9053.64,43334
Environment and Public Realm,Domestic Waste Collection/Recycling,REF00,Agency Staff,3,5377.56,Comensura Limited,142471,30/08/2018,10262965,TC,,4085767,755 3211 45,PN,9053.64,43334
Environment and Public Realm,Street Cleansing General,STC00,Agency Staff,3,242,Comensura Limited,142471,30/08/2018,10262965,TC,,4085767,755 3211 45,PN,9053.64,43334
Housing Revenue Account,Unplanned Maintenance and Repair,UMR00,Agency Staff,3,655.8,Comensura Limited,142471,30/08/2018,10262965,TC,,4085767,755 3211 45,PN,9053.64,43334
Environment and Public Realm,Domestic Waste Collection/Recycling,REF00,Materials,303,1222,UK Container Maintenance Limited,143118,09/08/2018,10262410,TC,,,725612740,PI,1466.4,43314
Executive Director Office,Electoral Registration,ERG00,New Equipment,300,6200,Xpress Software Solutions Ltd,143411,30/08/2018,10263147,TC,,,771293714,PN,7440,43341
Environment and Public Realm,Parks,PKS00,Maintenance of Equipment,301,850,Dura Sport (Leisure Care) Ltd,143619,23/08/2018,10262905,TC,,,747674291,PI,1020,43332
Environment and Public Realm,Parks,PKS00,External Contractor & Operator,742,1100,Dura Sport (Leisure Care) Ltd,143619,30/08/2018,10262987,TC,,,747674291,PI,1320,43334
Housing Revenue Account,Supervision and Management General,MAN00,Training fees,11,650,Hbinfo Ltd,144002,23/08/2018,10262903,TC,,,880720227,PI,780,43332
Communities and Homes,CL Grants,CGS00,Grants To Voluntary Organisations,720,8250,Warwickshire Community and Voluntary Action,145040,09/08/2018,10262370,TC,,,,PN,9900,43313
Environment and Public Realm,Parks,PKS00,Maintenance of Equipment,301,1534,PHS Ltd T/A Matta Products (UK),145081,30/08/2018,10262907,CS,,770813,542951438,PI,4141.8,43332
Environment and Public Realm,Section 106 Grounds Maintenance,PKS16,Maintenance of Equipment,301,1917.5,PHS Ltd T/A Matta Products (UK),145081,30/08/2018,10262907,CS,,770813,542951438,PI,4141.8,43332
Growth and Investment,Economic Development General,ECD00,Borough Local Plan,452,495,Nortoft Partnerships Ltd,145573,23/08/2018,10262955,TC,,3903741,747791777,PI,594,43333
Growth and Investment,Art Gallery and Museum,AGM00,Development Activities,450,1218.24,Axiell ALM Ltd,145706,30/08/2018,10263117,TC,,1607548,610506978,PN,1461.89,43341
Housing Revenue Account,Sheltered Housing,AGP00,Electricity,130,190.32,Total Gas & Power Ltd,146631,23/08/2018,10262820,TC,,2172239,689638949,PN,9628.19,43328
Housing Revenue Account,Alfred Green Close AP,AGP01,Electricity,130,224.17,Total Gas & Power Ltd,146631,23/08/2018,10262820,TC,,2172239,689638949,PN,9628.19,43328
Housing Revenue Account,Avon Court AP,AGP02,Electricity,130,191.54,Total Gas & Power Ltd,146631,23/08/2018,10262820,TC,,2172239,689638949,PN,9628.19,43328
Housing Revenue Account,Dickinson Court AP,AGP03,Electricity,130,193.74,Total Gas & Power Ltd,146631,23/08/2018,10262820,TC,,2172239,689638949,PN,9628.19,43328
Housing Revenue Account,Duffy Place AP,AGP04,Electricity,130,177.74,Total Gas & Power Ltd,146631,23/08/2018,10262820,TC,,2172239,689638949,PN,9628.19,43328
Housing Revenue Account,Frederick Press Way AP,AGP06,Electricity,130,416.54,Total Gas & Power Ltd,146631,23/08/2018,10262820,TC,,2172239,689638949,PN,9628.19,43328
Housing Revenue Account,John Thwaites Close AP,AGP08,Electricity,130,78.74,Total Gas & Power Ltd,146631,23/08/2018,10262820,TC,,2172239,689638949,PN,9628.19,43328
Housing Revenue Account,Mercer Court AP,AGP09,Electricity,130,201.52,Total Gas & Power Ltd,146631,23/08/2018,10262820,TC,,2172239,689638949,PN,9628.19,43328
Housing Revenue Account,Pettiver Crescent I AP,AGP10,Electricity,130,202.12,Total Gas & Power Ltd,146631,23/08/2018,10262820,TC,,2172239,689638949,PN,9628.19,43328
Housing Revenue Account,Robotham Close AP,AGP11,Electricity,130,208.23,Total Gas & Power Ltd,146631,23/08/2018,10262820,TC,,2172239,689638949,PN,9628.19,43328
Housing Revenue Account,Stacey Court AP,AGP12,Electricity,130,53.73,Total Gas & Power Ltd,146631,23/08/2018,10262820,TC,,2172239,689638949,PN,9628.19,43328
Housing Revenue Account,Stretton Court AP,AGP13,Electricity,130,87.49,Total Gas & Power Ltd,146631,23/08/2018,10262820,TC,,2172239,689638949,PN,9628.19,43328
Housing Revenue Account,Sun Street/Windsor Street AP,AGP14,Electricity,130,202.79,Total Gas & Power Ltd,146631,23/08/2018,10262820,TC,,2172239,689638949,PN,9628.19,43328
Housing Revenue Account,Lesley Souter House AP,AGP16,Electricity,130,461.82,Total Gas & Power Ltd,146631,23/08/2018,10262820,TC,,2172239,689638949,PN,9628.19,43328
Housing Revenue Account,Tanser Court AP,AGP17,Electricity,130,375.76,Total Gas & Power Ltd,146631,23/08/2018,10262820,TC,,2172239,689638949,PN,9628.19,43328
Housing Revenue Account,Edward Court AP,AGP19,Electricity,130,200.62,Total Gas & Power Ltd,146631,23/08/2018,10262820,TC,,2172239,689638949,PN,9628.19,43328
Housing Revenue Account,Albert Square AP,AGP20,Electricity,130,579.78,Total Gas & Power Ltd,146631,23/08/2018,10262820,TC,,2172239,689638949,PN,9628.19,43328
Housing Revenue Account,Eliot Court AP,AGP25,Electricity,130,55.36,Total Gas & Power Ltd,146631,23/08/2018,10262820,TC,,2172239,689638949,PN,9628.19,43328
Housing Revenue Account,Clare Court Site,AGP27,Electricity,130,27.07,Total Gas & Power Ltd,146631,23/08/2018,10262820,TC,,2172239,689638949,PN,9628.19,43328
Housing Revenue Account,Alexandra/James Court AP,AGP30,Electricity,130,128.74,Total Gas & Power Ltd,146631,23/08/2018,10262820,TC,,2172239,689638949,PN,9628.19,43328
Housing Revenue Account,Hirst Close AP,AGP33,Electricity,130,69.27,Total Gas & Power Ltd,146631,23/08/2018,10262820,TC,,2172239,689638949,PN,9628.19,43328
Housing Revenue Account,Assheton Close AP,AGP36,Electricity,130,42.14,Total Gas & Power Ltd,146631,23/08/2018,10262820,TC,,2172239,689638949,PN,9628.19,43328
Housing Revenue Account,Bennett Court/Warwick Road AP,AGP38,Electricity,130,33.76,Total Gas & Power Ltd,146631,23/08/2018,10262820,TC,,2172239,689638949,PN,9628.19,43328
Housing Revenue Account,Brookside Pailton AP,AGP40,Electricity,130,49.33,Total Gas & Power Ltd,146631,23/08/2018,10262820,TC,,2172239,689638949,PN,9628.19,43328
Housing Revenue Account,Clifton Road AP,AGP41,Electricity,130,18.41,Total Gas & Power Ltd,146631,23/08/2018,10262820,TC,,2172239,689638949,PN,9628.19,43328
Housing Revenue Account,Deepmore Road/Lytham Road AP,AGP42,Electricity,130,139.63,Total Gas & Power Ltd,146631,23/08/2018,10262820,TC,,2172239,689638949,PN,9628.19,43328
Housing Revenue Account,Edmondson Close Dunchurch AP,AGP44,Electricity,130,123.48,Total Gas & Power Ltd,146631,23/08/2018,10262820,TC,,2172239,689638949,PN,9628.19,43328
Housing Revenue Account,Featherbed Lane I AP,AGP45,Electricity,130,156.23,Total Gas & Power Ltd,146631,23/08/2018,10262820,TC,,2172239,689638949,PN,9628.19,43328
Housing Revenue Account,Fox Close AP,AGP47,Electricity,130,43.14,Total Gas & Power Ltd,146631,23/08/2018,10262820,TC,,2172239,689638949,PN,9628.19,43328
Housing Revenue Account,Great Balance Brinklow AP,AGP48,Electricity,130,23.22,Total Gas & Power Ltd,146631,23/08/2018,10262820,TC,,2172239,689638949,PN,9628.19,43328
Housing Revenue Account,Harold Cox Place AP,AGP51,Electricity,130,58.7,Total Gas & Power Ltd,146631,23/08/2018,10262820,TC,,2172239,689638949,PN,9628.19,43328
Housing Revenue Account,Jackson Road I AP,AGP53,Electricity,130,23.36,Total Gas & Power Ltd,146631,23/08/2018,10262820,TC,,2172239,689638949,PN,9628.19,43328
Housing Revenue Account,Lever Road I AP,AGP57,Electricity,130,130.72,Total Gas & Power Ltd,146631,23/08/2018,10262820,TC,,2172239,689638949,PN,9628.19,43328
Housing Revenue Account,Meadow Way/Primrose Court AP,AGP58,Electricity,130,82.18,Total Gas & Power Ltd,146631,23/08/2018,10262820,TC,,2172239,689638949,PN,9628.19,43328
Housing Revenue Account,Norman Road AP,AGP60,Electricity,130,9.98,Total Gas & Power Ltd,146631,23/08/2018,10262820,TC,,2172239,689638949,PN,9628.19,43328
Housing Revenue Account,Patterdale AP,AGP61,Electricity,130,23.08,Total Gas & Power Ltd,146631,23/08/2018,10262820,TC,,2172239,689638949,PN,9628.19,43328
Housing Revenue Account,The Kent AP,AGP67,Electricity,130,46.17,Total Gas & Power Ltd,146631,23/08/2018,10262820,TC,,2172239,689638949,PN,9628.19,43328
Housing Revenue Account,Victoria Street/Lawford Road AP,AGP68,Electricity,130,12.57,Total Gas & Power Ltd,146631,23/08/2018,10262820,TC,,2172239,689638949,PN,9628.19,43328
Housing Revenue Account,Parkfield Road/Lea Crescent AP,AGP71,Electricity,130,139.16,Total Gas & Power Ltd,146631,23/08/2018,10262820,TC,,2172239,689638949,PN,9628.19,43328
Housing Revenue Account,Pennington Street/Round Street AP,AGP72,Electricity,130,83.56,Total Gas & Power Ltd,146631,23/08/2018,10262820,TC,,2172239,689638949,PN,9628.19,43328
Housing Revenue Account,Control Centre CCTV,CCE01,Electricity,130,456.42,Total Gas & Power Ltd,146631,23/08/2018,10262820,TC,,2172239,689638949,PN,9628.19,43328
Housing Revenue Account,Supervision and Management General,MAN00,Electricity,130,149.18,Total Gas & Power Ltd,146631,23/08/2018,10262820,TC,,2172239,689638949,PN,9628.19,43328
Housing Revenue Account,Multi-Storey Flats,MSF00,Electricity,130,2452.31,Total Gas & Power Ltd,146631,23/08/2018,10262820,TC,,2172239,689638949,PN,9628.19,43328
Communities and Homes,Woodside Park,TVR00,Electricity,130,340.71,Total Gas & Power Ltd,146631,23/08/2018,10262820,TC,,2172239,689638949,PN,9628.19,43328
Corporate Resources,Corporate Property Central Utilities,CPA02,Electricity,130,1350.15,Total Gas & Power Ltd,146631,30/08/2018,10262821,TC,,2172239,689638949,PN,1525.48,43328
Corporate Resources,Corporate Property R&M,CPA01,Electricity,130,3309.93,Total Gas & Power Ltd,146631,30/08/2018,10262822,TC,,2172239,689638949,PN,13671.07,43328
Corporate Resources,Corporate Property Central Utilities,CPA02,Electricity,130,6609.23,Total Gas & Power Ltd,146631,30/08/2018,10262822,TC,,2172239,689638949,PN,13671.07,43328
Environment and Public Realm,Crematorium,CRM00,Electricity,130,1262.92,Total Gas & Power Ltd,146631,30/08/2018,10262822,TC,,2172239,689638949,PN,13671.07,43328
Housing Revenue Account,Unplanned Maintenance and Repair,UMR00,Electricity,130,195.74,Total Gas & Power Ltd,146631,30/08/2018,10262822,TC,,2172239,689638949,PN,13671.07,43328
Environment and Public Realm,WSU Depot,WDP00,Electricity,130,40.96,Total Gas & Power Ltd,146631,30/08/2018,10262822,TC,,2172239,689638949,PN,13671.07,43328
Capital Housing Revenue Account,Biart Place - Capital,BIA00,Capital Compensation Payments,5010,1500,Personal Redacted Data,146665,02/08/2018,10262273,NT,,,,PN,1500,43312
Environment and Public Realm,Weighbridge Digitalisation,WBD00,Capital Contract Payments,5000,1484.5,Weightron Bilanciai Limited,146759,23/08/2018,10253566,TC,,,458223052,PI,1781.4,43045
Corporate Resources,Retired Employees,RET00,Employers' Superannuation Contribution,2,25916.67,WCC Pension Fund,146914,09/08/2018,10262395,NT,,,,PN,25916.67,43314
Corporate Resources,Retired Employees,RET00,Additional Pension Payments,14,9492,WCC Pension Fund,146914,09/08/2018,10262477,NT,,,,PN,9492,43318
Growth and Investment,Planning General/Income,PLN00,Additional Pension Payments,14,2269.3,WCC Pension Fund,146914,16/08/2018,10262811,NT,,,,PN,2269.3,43327
Environment and Public Realm,Domestic Waste Collection/Recycling,REF00,External Contractor & Operator,742,510,James Baxter Haulage Ltd,147159,02/08/2018,10262137,TC,,,620070986,PN,612,43306
Environment and Public Realm,Domestic Waste Collection/Recycling,REF00,External Contractor & Operator,742,510,James Baxter Haulage Ltd,147159,02/08/2018,10262142,TC,,,620070986,PN,612,43306
Environment and Public Realm,Domestic Waste Collection/Recycling,REF00,External Contractor & Operator,742,510,James Baxter Haulage Ltd,147159,16/08/2018,10262422,TC,,,620070986,PN,612,43315
Environment and Public Realm,Domestic Waste Collection/Recycling,REF00,External Contractor & Operator,742,680,James Baxter Haulage Ltd,147159,23/08/2018,10262634,TC,,,620070986,PN,816,43322
Environment and Public Realm,Domestic Waste Collection/Recycling,REF00,External Contractor & Operator,742,1020,James Baxter Haulage Ltd,147159,23/08/2018,10262859,TC,,,620070986,PN,1224,43329
Corporate Resources,Corporate Property R&M,CPA01,R&M External Contractors,100,6901.38,Arden Construction Ltd,147430,23/08/2018,10262441,CS,,2722631,589378956,PI,8281.66,43315
Growth and Investment,Visitor Centre,VSC00,Purchases for Resale,305,486.08,Star Editions Ltd,147676,30/08/2018,10263095,TC,,6628133,922794209,PN,583.3,43336
Environment and Public Realm,Grounds Maintenance,PKS20,Vehicle Repair and Maintenance,200,580.07,Tallis Amos Group Limited,147758,02/08/2018,10262239,TC,,,377274127,PN,691.79,43311
Communities and Homes,CAST - Private Sector Leasing,CAS03,Private Sector Leasing Scheme Properties,148,1605,Personal Redacted Data,147940,30/08/2018,10263031,TC,,,,PN,1605,43335
Housing Revenue Account,Miscellaneous Unplanned Maintenance and Repair,UMR17,R&M External Contractors,100,2651.18,Western Power Distribution,148103,02/08/2018,10262155,CS,,2366984,664361920,PN,2651.18,43307
Communities and Homes,CAST - Private Sector Leasing,CAS03,Employee wellbeing/Other employee expenses,21,46,Team Prevent UK Ltd,148151,16/08/2018,10262376,TC,,,883064608,PN,749,43313
Corporate Resources,Corporate Property Administration,CPA00,Employee wellbeing/Other employee expenses,21,22,Team Prevent UK Ltd,148151,16/08/2018,10262376,TC,,,883064608,PN,749,43313
Environment and Public Realm,Highways,HIG20,Employee wellbeing/Other employee expenses,21,44,Team Prevent UK Ltd,148151,16/08/2018,10262376,TC,,,883064608,PN,749,43313
Environment and Public Realm,Grounds Maintenance,PKS20,Employee wellbeing/Other employee expenses,21,91,Team Prevent UK Ltd,148151,16/08/2018,10262376,TC,,,883064608,PN,749,43313
Growth and Investment,Planning General/Income,PLN00,Employee wellbeing/Other employee expenses,21,91,Team Prevent UK Ltd,148151,16/08/2018,10262376,TC,,,883064608,PN,749,43313
Environment and Public Realm,Domestic Waste Collection/Recycling,REF00,Employee wellbeing/Other employee expenses,21,91,Team Prevent UK Ltd,148151,16/08/2018,10262376,TC,,,883064608,PN,749,43313
Environment and Public Realm,Household Green Waste Collections,REF06,Employee wellbeing/Other employee expenses,21,91,Team Prevent UK Ltd,148151,16/08/2018,10262376,TC,,,883064608,PN,749,43313
Corporate Resources,Corporate Assurance,RES40,Employee wellbeing/Other employee expenses,21,91,Team Prevent UK Ltd,148151,16/08/2018,10262376,TC,,,883064608,PN,749,43313
Environment and Public Realm,Street Cleansing General,STC00,Employee wellbeing/Other employee expenses,21,91,Team Prevent UK Ltd,148151,16/08/2018,10262376,TC,,,883064608,PN,749,43313
Environment and Public Realm,Trade Waste Collection,WWC01,Employee wellbeing/Other employee expenses,21,91,Team Prevent UK Ltd,148151,16/08/2018,10262376,TC,,,883064608,PN,749,43313
Capital Housing Revenue Account,Biart Place - Capital,BIA00,Capital Compensation Payments,5010,1750,Personal Redacted Data,148369,30/08/2018,10262998,NT,,,,PN,1750,43335
Communities and Homes,CAST - Private Sector Leasing,CAS03,R&M External Contractors,100,25.5,Robert Heath Heating Ltd,148858,09/08/2018,10262433,CS,,1773699,927 4909 89,PN,7846.1,43315
Housing Revenue Account,Gas Heating Systems,UMR01,R&M External Contractors,100,5176.51,Robert Heath Heating Ltd,148858,09/08/2018,10262433,CS,,1773699,927 4909 89,PN,7846.1,43315
Housing Revenue Account,Repairs and Maintenance - Void works,UMR09,R&M External Contractors,100,1215.77,Robert Heath Heating Ltd,148858,09/08/2018,10262433,CS,,1773699,927 4909 89,PN,7846.1,43315
Housing Revenue Account,Miscellaneous Unplanned Maintenance and Repair,UMR17,R&M External Contractors,100,32.64,Robert Heath Heating Ltd,148858,09/08/2018,10262433,CS,,1773699,927 4909 89,PN,7846.1,43315
Housing Revenue Account,Repairs and Maintenance - rechargeable works,UMR20,R&M External Contractors,100,88,Robert Heath Heating Ltd,148858,09/08/2018,10262433,CS,,1773699,927 4909 89,PN,7846.1,43315
Housing Revenue Account,Gas Heating Systems,UMR01,R&M External Contractors,100,28438.92,Robert Heath Heating Ltd,148858,09/08/2018,10262434,CS,,1773699,927 4909 89,PN,34126.7,43315
Growth and Investment,Economic Development General,ECD00,Borough Local Plan,452,2250,LUC,148877,16/08/2018,10262173,TC,,2549296,523447261,PI,2700,43307
Growth and Investment,Economic Development General,ECD00,Borough Local Plan,452,500,LUC,148877,23/08/2018,10262944,TC,,2549296,523447261,PN,600,43333
Housing Revenue Account,Multi-Storey Flats,MSF00,Internal Contractor,743,1325,Solutions Services,148937,02/08/2018,10261954,TC,,,831753431,PN,1590,43304
Communities and Homes,CAST - Bed & Breakfast,CAS01,Building cleaning,170,420,Solutions Services,148937,02/08/2018,10262184,TC,,,831753431,PN,504,43308
Communities and Homes,CAST - Private Sector Leasing,CAS03,Building cleaning,170,1280.72,Solutions Services,148937,02/08/2018,10262353,TC,,,831753431,PN,1536.86,43313
Environment and Public Realm,Gypsy & Traveller Enforcement,TRA00,External Legal Costs,741,650,The Bailiff Company T/A Civil Enforcement Agents Ltd,149091,16/08/2018,10262610,TC,,8436050,161886678,PN,780,43321
Housing Revenue Account,Repairs and Maintenance - Void works,UMR09,R&M External Contractors,100,305,Elite Surveyors Ltd,149107,23/08/2018,10262797,TC,,6435692,924012466,PN,684,43327
Housing Revenue Account,Voids & Allocations Team,MAN24,External Contractor & Operator,742,265,Elite Surveyors Ltd,149107,23/08/2018,10262797,TC,,6435692,924012466,PN,684,43327
Housing Revenue Account,Housing Management,MAN22,External Legal Costs,741,1500,Personal Redacted Data,149236,02/08/2018,10261299,TC,,,,PN,1800,43283
Environment and Public Realm,Garage,WVR00,Materials,303,737.52,Tom Tom International BV,149311,23/08/2018,10262686,TC,,,273433560,PN,885.02,43325
Housing Revenue Account,Control Centre CCTV,CCE01,Maintenance of Equipment,301,3746.66,Close Circuit Security Services Ltd,149426,02/08/2018,10262271,TC,,3543850,695360895,PN,4495.99,43312
Housing Revenue Account,Control Centre CCTV,CCE01,Maintenance of Equipment,301,1728.57,Close Circuit Security Services Ltd,149426,16/08/2018,10262678,TC,,3543850,695360895,PN,2074.28,43325
Environment and Public Realm,Crematorium,CRM00,Organist Fees,414,873,Personal Redacted Data,149686,23/08/2018,10262933,TC,,,,PN,873,43333
Capital Housing Revenue Account,Biart Place - Capital,BIA00,Capital Compensation Payments,5010,1750,Personal Redacted Data,149769,16/08/2018,10262692,NT,,,,PN,1750,43326
Capital Housing Revenue Account,Biart Place - Capital,BIA00,Capital Compensation Payments,5010,5888.74,Personal Redacted Data,149769,23/08/2018,10262882,NT,,,,PN,5888.74,43332
Capital Housing Revenue Account,Heating Upgrades,HIM01,Capital Contract Payments,5000,753.93,PTS Rugby,149845,02/08/2018,10262365,TC,,,408556737,PN,904.72,43313
Capital Housing Revenue Account,Heating Upgrades,HIM01,Capital Contract Payments,5000,7987.58,PTS Rugby,149845,02/08/2018,10262366,TC,,,408556737,PN,9585.1,43313
Capital Housing Revenue Account,Heating Upgrades,HIM01,Capital Contract Payments,5000,3161.64,PTS Rugby,149845,02/08/2018,10262367,TC,,,408556737,PN,3793.97,43313
Capital Housing Revenue Account,Heating Upgrades,HIM01,Capital Contract Payments,5000,4013.42,PTS Rugby,149845,09/08/2018,10262574,TC,,,408556737,PN,4816.1,43320
Capital Housing Revenue Account,Heating Upgrades,HIM01,Capital Contract Payments,5000,4813.48,PTS Rugby,149845,23/08/2018,10262926,TC,,,408556737,PN,5776.18,43332
Environment and Public Realm,Crematorium,CRM00,Consultancy Costs,740,450,Peter Linsell Management Consultants,149849,02/08/2018,10262249,TC,,,925694000,PN,540,43311
Environment and Public Realm,Parks,PKS00,Maintenance of Equipment,301,720,Alive Oak Design & Restoration,149976,23/08/2018,10262721,TC,,,,PI,720,43326
Housing Revenue Account,Housing Management,MAN22,Estates,457,550,HTC Arbor Services Ltd,150129,23/08/2018,10262846,TC,,,983914868,PI,660,43328
Environment and Public Realm,Crematorium,CRM00,R&M External Contractors,100,1638,Re-Carb Engineering Ltd,150324,16/08/2018,10262754,TC,,8776799,176214314,PN,1965.6,43327
Communities and Homes,Ash Project,CAS05,Grants,420,13000,Doorway,150386,23/08/2018,10262923,TC,,,,PN,13000,43332
Environment and Public Realm,Household Green Waste Collections,REF06,Vehicle Repair and Maintenance,200,1064.7,Rygor Commercials,150457,16/08/2018,10256260,TC,,1884237,4230072,PN,1277.64,43132
Environment and Public Realm,Household Green Waste Collections,REF06,Vehicle Repair and Maintenance,200,-1064.7,Rygor Commercials,150457,16/08/2018,10262514,TC,,1884237,4230072,PN,-1277.64,43319
Corporate Resources,Corporate Property R&M,CPA01,R&M External Contractors,100,1855.38,Fairacre Services (Midlands) Ltd,150490,16/08/2018,10262609,TC,,,,PN,2359.13,43321
Housing Revenue Account,Unplanned Maintenance and Repair,UMR00,R&M External Contractors,100,110.57,Fairacre Services (Midlands) Ltd,150490,16/08/2018,10262609,TC,,,,PN,2359.13,43321
Housing Revenue Account,Miscellaneous Unplanned Maintenance and Repair,UMR17,R&M External Contractors,100,420.48,CSL DualCom Ltd,150752,02/08/2018,10262220,TC,,3155883,882351318,PN,504.58,43311
Environment and Public Realm,Regulatory Services,REG00,Vehicle Repair and Maintenance,200,870.63,Webb Ellis Autocentre Ltd,150882,16/08/2018,10262619,TC,,,212752337,PN,1044.75,43321
Environment and Public Realm,Regulatory Services,REG00,Vehicle Repair and Maintenance,200,1028.17,Webb Ellis Autocentre Ltd,150882,23/08/2018,10262825,TC,,,212752337,PN,1233.8,43328
Environment and Public Realm,Street Cleansing General,STC00,Vehicle Repair and Maintenance,200,491.2,Green Machines Sweepers UK Ltd,150965,02/08/2018,10262022,TC,,SC520664,232680518,PN,589.44,43305
Housing Revenue Account,Lift maintenance,UMR14,R&M External Contractors,100,2145,Lift & Engineering Services Ltd,150984,02/08/2018,10262284,TC,,1913516,377355519,PN,2574,43312
Housing Revenue Account,Lift maintenance,UMR14,R&M External Contractors,100,2655,Lift & Engineering Services Ltd,150984,09/08/2018,10262427,TC,,1913516,377355519,PN,3186,43315
Environment and Public Realm,Grounds Maintenance,PKS20,External Contractor & Operator,742,5900,Glendale Grounds Management Ltd,151025,02/08/2018,10262348,TC,,,203324952,PN,7080,43313
Environment and Public Realm,Grounds Maintenance,PKS20,External Contractor & Operator,742,3418.08,Glendale Grounds Management Ltd,151025,30/08/2018,10262967,TC,,,203324952,PN,4101.7,43334
Communities and Homes,CAST - Private Sector Leasing,CAS03,Private Sector Leasing Scheme Properties,148,2625,Personal Redacted Data,151176,30/08/2018,10263128,TC,,,,PN,2625,43341
Communities and Homes,Maintenance of Customer Services Systems,CIS21,Software Maintenance,374,1500,Sports Booker Ltd,151186,16/08/2018,10262768,TC,,7764026,819067808,PN,1800,43327
Housing Revenue Account,Laundry equipment maintenance,UMR15,R&M External Contractors,100,4572,JLA Ltd,151207,02/08/2018,10262283,TC,,1094178,566894869,PN,5486.4,43312
Housing Revenue Account,Laundry equipment maintenance,UMR15,R&M External Contractors,100,2782,JLA Ltd,151207,30/08/2018,10263192,TC,,1094178,566894869,PN,3338.4,43342
Growth and Investment,Art Gallery and Museum,AGM00,Childcare vouchers admin fee,7,9.72,Busy Bees Benefits Ltd,151230,09/08/2018,10262448,NT,,6758298,,PN,3585.49,43318
Corporate Resources,Council Tax and NNDR Collection,CTX01,Childcare vouchers admin fee,7,0.8,Busy Bees Benefits Ltd,151230,09/08/2018,10262448,NT,,6758298,,PN,3585.49,43318
Corporate Resources,Legal Services,DEM20,Childcare vouchers admin fee,7,9.09,Busy Bees Benefits Ltd,151230,09/08/2018,10262448,NT,,6758298,,PN,3585.49,43318
Growth and Investment,Economic Development General,ECD00,Childcare vouchers admin fee,7,2.4,Busy Bees Benefits Ltd,151230,09/08/2018,10262448,NT,,6758298,,PN,3585.49,43318
Communities and Homes,WTHEIP - Warwickshire Together Homelessness Early Intervention Project,HIP00,Childcare vouchers admin fee,7,9.72,Busy Bees Benefits Ltd,151230,09/08/2018,10262448,NT,,6758298,,PN,3585.49,43318
Environment and Public Realm,Licencing,LIC00,Childcare vouchers admin fee,7,3.2,Busy Bees Benefits Ltd,151230,09/08/2018,10262448,NT,,6758298,,PN,3585.49,43318
Growth and Investment,Sports and Recreation,LSD03,Childcare vouchers admin fee,7,8.4,Busy Bees Benefits Ltd,151230,09/08/2018,10262448,NT,,6758298,,PN,3585.49,43318
Housing Revenue Account,Housing Management,MAN22,Childcare vouchers admin fee,7,9.72,Busy Bees Benefits Ltd,151230,09/08/2018,10262448,NT,,6758298,,PN,3585.49,43318
Growth and Investment,Planning General/Income,PLN00,Childcare vouchers admin fee,7,14.52,Busy Bees Benefits Ltd,151230,09/08/2018,10262448,NT,,6758298,,PN,3585.49,43318
Environment and Public Realm,Domestic Waste Collection/Recycling,REF00,Childcare vouchers admin fee,7,1,Busy Bees Benefits Ltd,151230,09/08/2018,10262448,NT,,6758298,,PN,3585.49,43318
Environment and Public Realm,Regulatory Services,REG00,Childcare vouchers admin fee,7,19.44,Busy Bees Benefits Ltd,151230,09/08/2018,10262448,NT,,6758298,,PN,3585.49,43318
Corporate Resources,Financial Services,RES10,Childcare vouchers admin fee,7,21.44,Busy Bees Benefits Ltd,151230,09/08/2018,10262448,NT,,6758298,,PN,3585.49,43318
Corporate Resources,Human Resources,RES30,Childcare vouchers admin fee,7,1.2,Busy Bees Benefits Ltd,151230,09/08/2018,10262448,NT,,6758298,,PN,3585.49,43318
Housing Revenue Account,Unplanned Maintenance and Repair,UMR00,Childcare vouchers admin fee,7,14.48,Busy Bees Benefits Ltd,151230,09/08/2018,10262448,NT,,6758298,,PN,3585.49,43318
Growth and Investment,Visitor Centre,VSC00,Childcare vouchers admin fee,7,2,Busy Bees Benefits Ltd,151230,09/08/2018,10262448,NT,,6758298,,PN,3585.49,43318
Environment and Public Realm,Trade Waste Collection,WWC01,Childcare vouchers admin fee,7,9.72,Busy Bees Benefits Ltd,151230,09/08/2018,10262448,NT,,6758298,,PN,3585.49,43318
Capital Housing Revenue Account,Biart Place - Capital,BIA00,Capital Compensation Payments,5010,1750,Personal Redacted Data,151311,23/08/2018,10262964,NT,,,,PN,1750,43334
Housing Revenue Account,Control Centre (HRA),CCE00,Subscriptions,421,1230,Tec Services Association,151314,09/08/2018,10262464,TC,,11116454,284906175,PN,1476,43318
Environment and Public Realm,Crime and Disorder Activities,CAD00,Development Activities,450,450,Buddi Ltd,151339,09/08/2018,10262437,TC,,5308826,867696451,PI,540,43315
Communities and Homes,CAST - Private Sector Leasing,CAS03,Private Sector Leasing Scheme Properties,148,1800,PC West Charitable Trust,151375,02/08/2018,10262299,TC,,,,PN,1800,43312
Communities and Homes,Woodside Park,TVR00,R&M External Contractors,100,6900,Drainstore Ltd,151434,02/08/2018,10262195,TC,,5042897,997506365,PN,8280,43308
Communities and Homes,Woodside Park,TVR00,R&M External Contractors,100,8801.46,MTS Cleansing Services Ltd,151488,09/08/2018,10262442,TC,,2045340,445837717,PN,10561.75,43318
Communities and Homes,CAST - Private Sector Leasing,CAS03,Private Sector Leasing Scheme Properties,148,4950,SV Property Ltd,151504,16/08/2018,10262649,TC,,,,PN,4950,43322
Communities and Homes,Broadband & internet,TEL01,Telephone Expenses,371,2206.18,HighSpeed Office Ltd,151543,16/08/2018,10262513,TC,,3935705,766384980,PN,2647.42,43319
Communities and Homes,Broadband & internet,TEL01,Telephone Expenses,371,-1271.78,HighSpeed Office Ltd,151543,16/08/2018,10262752,TC,,3935705,766384980,PN,-1526.14,43327
Environment and Public Realm,Parks,PKS00,External Contractor & Operator,742,2970,Beechwood Trees & Landscapes Ltd,151563,23/08/2018,10262936,TC,,7075877,775727582,PN,3564,43333
Growth and Investment,Planning General/Income,PLN00,Consultancy Costs,740,3830.21,Nigel Reeves Planning & Urban Design Ltd,151614,16/08/2018,10262608,TC,,,,PN,3830.21,43321
Growth and Investment,The Benn Hall,BHL00,Purchases for Resale,305,1085.66,Drays Wholesale Limited,151618,02/08/2018,10262222,TC,,,128586875,PN,1302.79,43311
Growth and Investment,The Benn Hall,BHL00,Purchases for Resale,305,689.7,Drays Wholesale Limited,151618,16/08/2018,10262444,TC,,,128586875,PN,827.64,43318
Growth and Investment,The Benn Hall,BHL00,Purchases for Resale,305,561.29,Drays Wholesale Limited,151618,23/08/2018,10262625,TC,,,128586875,PN,673.55,43321
Environment and Public Realm,WSU Depot,WDP00,Personal Protective Clothing,340,1326.8,SMI Group UK,151681,02/08/2018,10261984,TC,,7644080,217124496,PN,1592.16,43305
Environment and Public Realm,WSU Depot,WDP00,Personal Protective Clothing,340,853.2,SMI Group UK,151681,23/08/2018,10262465,TC,,7644080,217124496,PN,1023.84,43318
Environment and Public Realm,Trade Waste Collection,WWC01,Materials,303,9010.25,Storm Environmental Ltd,151691,23/08/2018,10262842,TC,,,,PI,21624.6,43328
Capital Environment and Public Realm,Purchase of Waste Bins,PWB00,Capital Contract Payments,5000,9010.25,Storm Environmental Ltd,151691,23/08/2018,10262842,TC,,,,PI,21624.6,43328
Communities and Homes,WTHEIP - Warwickshire Together Homelessness Early Intervention Project,HIP00,Payments to Other Local Authorities,710,2221.33,People Potential Possibilites T/A P3 Charity,151739,30/08/2018,10263043,TC,,2495423,,PN,2221.33,43336
Capital Housing Revenue Account,Heating Upgrades,HIM01,Capital Contract Payments,5000,10988.01,UK Gas Services Ltd,151764,09/08/2018,10262430,CS,,2976617,974960175,PN,13185.61,43315
Housing Revenue Account,Miscellaneous Unplanned Maintenance and Repair,UMR17,R&M External Contractors,100,1833.2,UK Gas Services Ltd,151764,30/08/2018,10263193,CS,,2976617,974960175,PN,12045.12,43342
Capital Housing Revenue Account,Heating Upgrades,HIM01,Capital Contract Payments,5000,8204.4,UK Gas Services Ltd,151764,30/08/2018,10263193,CS,,2976617,974960175,PN,12045.12,43342
Communities and Homes,CAST - Private Sector Leasing,CAS03,Private Sector Leasing Scheme Properties,148,2250.03,Personal Redacted Data,151765,16/08/2018,10262771,TC,,,,PN,2250.03,43327
Communities and Homes,Equality & Diversity,CIS40,Subscriptions,421,1200,The Employers Network for Equality & Inclusion,151772,23/08/2018,10262843,TC,,4549009,830391447,PI,1440,43328
Housing Revenue Account,Control Centre (HRA),CCE00,New Equipment,300,1980,Tunstall Healthcare,151791,16/08/2018,10262209,TC,,1332249,182879709,PI,2376,43308
Growth and Investment,Art Gallery and Museum,AGM00,Building cleaning,170,2343.75,Kingdom Service Group,151795,16/08/2018,10262350,CS,,2795197,582329526,PN,37045.31,43313
Housing Revenue Account,Sheltered Housing,AGP00,Building cleaning,170,13090.67,Kingdom Service Group,151795,16/08/2018,10262350,CS,,2795197,582329526,PN,37045.31,43313
Growth and Investment,The Benn Hall,BHL00,Building cleaning,170,1406.25,Kingdom Service Group,151795,16/08/2018,10262350,CS,,2795197,582329526,PN,37045.31,43313
Communities and Homes,Community Advice & Support Team,CAS00,Building cleaning,170,124.29,Kingdom Service Group,151795,16/08/2018,10262350,CS,,2795197,582329526,PN,37045.31,43313
Environment and Public Realm,Car Parks General,CPK01,Building cleaning,170,398,Kingdom Service Group,151795,16/08/2018,10262350,CS,,2795197,582329526,PN,37045.31,43313
Environment and Public Realm,Crematorium,CRM00,Building cleaning,170,826,Kingdom Service Group,151795,16/08/2018,10262350,CS,,2795197,582329526,PN,37045.31,43313
Housing Revenue Account,Housing Management,MAN22,Building cleaning,170,2819.57,Kingdom Service Group,151795,16/08/2018,10262350,CS,,2795197,582329526,PN,37045.31,43313
Housing Revenue Account,Multi-Storey Flats,MSF00,Building cleaning,170,1584.56,Kingdom Service Group,151795,16/08/2018,10262350,CS,,2795197,582329526,PN,37045.31,43313
Corporate Resources,Town Hall,OFF00,Building cleaning,170,4634.67,Kingdom Service Group,151795,16/08/2018,10262350,CS,,2795197,582329526,PN,37045.31,43313
Environment and Public Realm,Parks,PKS00,Building cleaning,170,220.5,Kingdom Service Group,151795,16/08/2018,10262350,CS,,2795197,582329526,PN,37045.31,43313
Housing Revenue Account,Unplanned Maintenance and Repair,UMR00,Building cleaning,170,486,Kingdom Service Group,151795,16/08/2018,10262350,CS,,2795197,582329526,PN,37045.31,43313
Environment and Public Realm,WSU Depot,WDP00,Building cleaning,170,436.83,Kingdom Service Group,151795,16/08/2018,10262350,CS,,2795197,582329526,PN,37045.31,43313
Environment and Public Realm,Town Centre Public Conveniences,PCS00,Toilet Cleaning,173,2500,Kingdom Service Group,151795,16/08/2018,10262350,CS,,2795197,582329526,PN,37045.31,43313
Housing Revenue Account,Repairs and Maintenance - Void works,UMR09,R&M External Contractors,100,1100,Kingdom Service Group,151795,16/08/2018,10262682,CS,,2795197,582329526,PN,1322.4,43325
Housing Revenue Account,Miscellaneous Unplanned Maintenance and Repair,UMR17,R&M External Contractors,100,2,Kingdom Service Group,151795,16/08/2018,10262682,CS,,2795197,582329526,PN,1322.4,43325
Environment and Public Realm,Highways,HIG20,Materials,303,664.93,Promain UK Ltd,151807,16/08/2018,10262549,TC,,5271223,852534328,PI,797.92,43320
Environment and Public Realm,Domestic Waste Collection/Recycling,REF00,Vehicle Repair and Maintenance,200,1054.4,Access Engineering Supplies Ltd,151808,23/08/2018,10262698,TC,,6406682,921692520,PN,1265.28,43326
Growth and Investment,Hall of Fame,TRY00,Publicity & Marketing,377,1538,JCDecaux UK Ltd - Rail,151817,16/08/2018,10262706,TC,,1679670,539090043,PI,1845.6,43326
Corporate Resources,Human Resources Centralised Services,RES31,Recruitment Expenses,12,2155,Growth Hub Business Solutions,151836,16/08/2018,10262326,TC,,10369498,66928359,PI,2586,43313
Corporate Resources,Human Resources Centralised Services,RES31,Recruitment Expenses,12,1950,Growth Hub Business Solutions,151836,23/08/2018,10262724,TC,,10369498,66928359,PI,2340,43326
Housing Revenue Account,Miscellaneous Unplanned Maintenance and Repair,UMR17,R&M External Contractors,100,1798,Integrated Water Services Ltd,151890,02/08/2018,10262359,NT,,5283349,918455404,PN,2157.6,43313
Housing Revenue Account,Miscellaneous Unplanned Maintenance and Repair,UMR17,R&M External Contractors,100,4250,Integrated Water Services Ltd,151890,02/08/2018,10262361,NT,,5283349,918455404,PN,5100,43313
Housing Revenue Account,Miscellaneous Unplanned Maintenance and Repair,UMR17,R&M External Contractors,100,838,Integrated Water Services Ltd,151890,02/08/2018,10262362,NT,,5283349,918455404,PN,1005.6,43313
Corporate Resources,Corporate Property R&M,CPA01,R&M External Contractors,100,5644,Integrated Water Services Ltd,151890,16/08/2018,10262429,NT,,5283349,918455404,PN,6772.8,43315
Communities and Homes,CL Grants,CGS00,Grants To Voluntary Organisations,720,2000,Lansdowne Allotment Association,151909,30/08/2018,10263030,NT,,,,PN,2000,43335
Capital Housing Revenue Account,Housing Management System,HCE08,IT Capital Expenditure,5025,3150,Gravitas Recruitment Group,151921,02/08/2018,10261862,TC,,6959984,974844372,PN,3780,43299
Capital Housing Revenue Account,Housing Management System,HCE08,IT Capital Expenditure,5025,2205,Gravitas Recruitment Group,151921,02/08/2018,10261863,TC,,6959984,974844372,PN,2646,43299
Capital Housing Revenue Account,Housing Management System,HCE08,IT Capital Expenditure,5025,2520,Gravitas Recruitment Group,151921,02/08/2018,10261878,TC,,6959984,974844372,PN,3024,43299
Capital Housing Revenue Account,Housing Management System,HCE08,IT Capital Expenditure,5025,6300,Gravitas Recruitment Group,151921,09/08/2018,10261908,TC,,6959984,974844372,PN,7560,43300
Capital Housing Revenue Account,Housing Management System,HCE08,IT Capital Expenditure,5025,4725,Gravitas Recruitment Group,151921,09/08/2018,10262495,TC,,6959984,974844372,PN,5670,43319
Capital Housing Revenue Account,Housing Management System,HCE08,IT Capital Expenditure,5025,1890,Gravitas Recruitment Group,151921,23/08/2018,10262824,TC,,6959984,974844372,PN,2268,43328
Communities and Homes,CAST - Private Sector Leasing,CAS03,Private Sector Leasing Scheme Properties,148,5250,Dreambuilder Financial Ltd,151961,09/08/2018,10262424,NT,,,,PN,5250,43315
Communities and Homes,CAST - Private Sector Leasing,CAS03,Private Sector Leasing Scheme Properties,148,1800,Personal Redacted Data,151978,02/08/2018,10262248,NT,,,,PN,1800,43311
Communities and Homes,CAST - Private Sector Leasing,CAS03,Private Sector Leasing Scheme Properties,148,1650,Personal Redacted Data,151978,16/08/2018,10262772,NT,,,,PN,1650,43327
Environment and Public Realm,Street Cleansing General,STC00,Materials,303,637.5,Hammonds Hygiene Solutions Ltd,152004,23/08/2018,10262839,TC,,6143231,770138146,PI,765,43328
Environment and Public Realm,Crematorium,CRM00,Publicity & Marketing,377,995,Impact Marketing & Publicity Ltd,152028,09/08/2018,10262462,TC,,1901620,416293456,PN,1194,43318
Growth and Investment,Hall of Fame,TRY00,New Equipment,300,990,Fusion LX,152073,09/08/2018,10262312,TC,,7055615,980052726,PI,1200,43312
Growth and Investment,Hall of Fame,TRY00,Other Miscellaneous Expenses,444,10,Fusion LX,152073,09/08/2018,10262312,TC,,7055615,980052726,PI,1200,43312
Growth and Investment,Nightly Paid Self Contained Accommodation,CAS07,Nightly Self Contained Accommodation,149,12480,Centennial Property T/A The Housing Network,152075,30/08/2018,10263149,TC,,,,PN,12480,43341
Capital Housing Revenue Account,Biart Place - Capital,BIA00,Capital Contract Payments,5000,3500,Shulmans LLP,152143,30/08/2018,10263138,TC,,OC348166,,PI,4200,43341
Capital Housing Revenue Account,Biart Place - Capital,BIA00,Capital Compensation Payments,5010,5750.04,Personal Redacted Data,152149,16/08/2018,10262694,NT,,,,PN,5750.04,43326
Environment and Public Realm,Crematorium,CRM00,R&M External Contractors,100,510,Central Theatre Supplies,152157,23/08/2018,10262924,TC,,,389226416,PN,612,43332
Environment and Public Realm,Crematorium,CRM00,R&M External Contractors,100,650,Central Theatre Supplies,152157,30/08/2018,10263038,TC,,,389226416,PI,780,43335
Environment and Public Realm,Parks,PKS00,External Contractor & Operator,742,500,Freemantle Allotment Association,152172,16/08/2018,10262683,NT,,,,PN,500,43325
Capital Housing Revenue Account,Biart Place - Capital,BIA00,Capital Compensation Payments,5010,1268.3,Personal Redacted Data,152173,16/08/2018,10262601,NT,,,,PN,1268.3,43321
Growth and Investment,Visitor Centre,VSC00,Purchases for Resale,305,1587.6,Cortina B.V.,152174,16/08/2018,10262217,TC,,,,PI,1587.6,43308
Housing Revenue Account,Miscellaneous Unplanned Maintenance and Repair,UMR17,R&M External Contractors,100,999.9,Avonside Driffield Residential Roofing,152178,02/08/2018,10261428,TC,,,680475321,PN,999.9,43285
Capital Housing Revenue Account,Biart Place - Capital,BIA00,Capital Compensation Payments,5010,5559.66,Personal Redacted Data,152180,09/08/2018,10262496,NT,,,,PN,5559.66,43319
Capital Housing Revenue Account,Biart Place - Capital,BIA00,Capital Compensation Payments,5010,5696.8,Personal Redacted Data,152181,09/08/2018,10262497,NT,,,,PN,5696.8,43319
Environment and Public Realm,Highways,HIG20,Contract Hire,220,650,John Butlin Ltd,152186,09/08/2018,10262553,TC,,,109439073,PI,780,43320
Communities and Homes,Community Advice & Support Team,CAS00,Agency Staff,3,8644,Bloom Procurement Services Ltd,152189,09/08/2018,10262485,TC,,8045123,157489170,PI,10372.8,43318
Communities and Homes,Community Advice & Support Team,CAS00,Agency Staff,3,8644,Bloom Procurement Services Ltd,152189,09/08/2018,10262486,TC,,8045123,157489170,PI,10372.8,43318
Growth and Investment,Art Gallery and Museum,AGM00,Contribution to Bad Debt Provisions,443,2500,Midlands Arts Centre,152197,02/08/2018,10262245,TC,,718349,818285116,PN,2500,43311
Environment and Public Realm,Highways,HIG20,External Contractor & Operator,742,1332.4,Hire Station Ltd T/A ESS Safeforce,152198,02/08/2018,10262290,TC,,3428037,700949834,PI,1598.88,43312
Capital Housing Revenue Account,Biart Place - Capital,BIA00,Capital Compensation Payments,5010,5700.24,Personal Redacted Data,152203,30/08/2018,10263046,NT,,,,PN,5700.24,43336
Capital Housing Revenue Account,Biart Place - Capital,BIA00,Capital Compensation Payments,5010,4768.69,Personal Redacted Data,152204,23/08/2018,10262881,NT,,,,PN,4768.69,43332
Environment and Public Realm,Parks,PKS00,Materials,303,12530,Boyd Sport & Play Ltd T/A sportsequip,152205,30/08/2018,10263094,TC,,3477837,705387334,PI,15036,43336
Capital Housing Revenue Account,Biart Place - Capital,BIA00,Capital Compensation Payments,5010,5567.72,Personal Redacted Data,152209,23/08/2018,10262935,NT,,,,PN,5567.72,43333
Capital Housing Revenue Account,Biart Place - Capital,BIA00,Capital Compensation Payments,5010,6100,Personal Redacted Data,152213,09/08/2018,10262399,NT,,,,PN,6100,43314
Growth and Investment,On Track,LSD04,Training fees,11,662.5,MK Driver Training,152214,23/08/2018,10262105,TC,,,974535388,PN,1544,43306
Growth and Investment,Play Projects (revenue),LSD09,Training fees,11,662.5,MK Driver Training,152214,23/08/2018,10262105,TC,,,974535388,PN,1544,43306
Capital Housing Revenue Account,Biart Place - Capital,BIA00,Capital Compensation Payments,5010,1500,Personal Redacted Data,152220,02/08/2018,10262224,NT,,,,PN,1500,43311
Communities and Homes,CAST - Private Sector Leasing,CAS03,Private Sector Leasing Scheme Properties,148,2100,Personal Redacted Data,152221,02/08/2018,10262251,NT,,,,PN,2100,43311
Growth and Investment,The Benn Hall,BHL00,Events Tickets - Standard Rated,1404,6270,HRH Entertainments Ltd,152226,09/08/2018,10262482,NT,,,,PN,6270,43318
Capital Communities and Homes,ICT Renewal Programme,CMP00,IT Capital Expenditure,5025,2940,Mutiny Ltd,152228,16/08/2018,10262550,TC,,4088880,778578747,PI,3528,43320
Capital Housing Revenue Account,Biart Place - Capital,BIA00,Capital Compensation Payments,5010,3900,Personal Redacted Data,152229,09/08/2018,10262523,TC,,,,PN,3900,43319
Capital Housing Revenue Account,Biart Place - Capital,BIA00,Capital Compensation Payments,5010,4935.22,Personal Redacted Data,152229,30/08/2018,10263045,TC,,,,PN,4935.22,43336
Capital Housing Revenue Account,Biart Place - Capital,BIA00,Capital Compensation Payments,5010,1500,Personal Redacted Data,152231,16/08/2018,10262600,NT,,,,PN,1500,43321
Growth and Investment,Grants and Subscriptions,LGS00,Grants To Voluntary Organisations,720,1000,Rugby Methodist Church Centre,152232,16/08/2018,10262614,NT,,,,PN,1000,43321
Growth and Investment,Visitor Centre,VSC00,Publicity & Marketing,377,425,Steve Reed Tourism Ltd,152233,16/08/2018,10262640,TC,,4596763,772156916,PI,510,43322
Growth and Investment,Grants and Subscriptions,LGS00,Grants To Voluntary Organisations,720,1000,Long Lawford Community Association,152236,16/08/2018,10262636,NT,,,,PN,1000,43322
Outside portfolio expenditure,Balance Sheet,BS,Car Loan Scheme,9261,6600,Evans Halshaw Coventry,152238,16/08/2018,10262707,NT,,,,PN,6600,43326
Communities and Homes,CL Grants,CGS00,Grants To Voluntary Organisations,720,2292,Rugby Autism Network,152239,23/08/2018,10262757,NT,,,,PN,2292,43327
Communities and Homes,Community Advice & Support Team,CAS00,R&M External Contractors,100,483.95,Churches Fire Security Ltd,152242,23/08/2018,10262899,TC,,2703471,568637001,PN,580.74,43332
Capital Housing Revenue Account,Biart Place - Capital,BIA00,Capital Compensation Payments,5010,1500,Personal Redacted Data,152243,23/08/2018,10262877,NT,,,,PN,1500,43332
Growth and Investment,The Benn Hall,BHL00,Other Miscellaneous Expenses,444,2000,Johnny Strange Entertainment,152246,23/08/2018,10262980,TC,,,,PN,2000,43334
Growth and Investment,The Benn Hall,BHL00,Publicity & Marketing,377,850,JLife Ltd,152247,23/08/2018,10262975,TC,,7513277,128414621,PN,1020,43334
Communities and Homes,Homelessness Prevention,CAS06,Rent Deposit (non repayable),138,750,Personal Redacted Data,152248,23/08/2018,10262974,NT,,,,PN,1600,43334
Communities and Homes,Homelessness Prevention,CAS06,Private Sector Leasing Scheme Properties,148,850,Personal Redacted Data,152248,23/08/2018,10262974,NT,,,,PN,1600,43334
Capital Housing Revenue Account,Biart Place - Capital,BIA00,Capital Compensation Payments,5010,1750,Personal Redacted Data,152252,30/08/2018,10263099,NT,,,,PN,1750,43340
Capital Housing Revenue Account,Biart Place - Capital,BIA00,Capital Compensation Payments,5010,1750,Personal Redacted Data,152253,30/08/2018,10263100,NT,,,,PN,1750,43340
Capital Housing Revenue Account,Biart Place - Capital,BIA00,Capital Compensation Payments,5010,1750,Personal Redacted Data,152255,30/08/2018,10263122,NT,,,,PN,1750,43341
Capital Housing Revenue Account,Biart Place - Capital,BIA00,Capital Compensation Payments,5010,1750,Personal Redacted Data,152256,30/08/2018,10263121,NT,,,,PN,1750,43341
Environment and Public Realm,Crematorium,CRM00,R&M External Contractors,100,1073.5,Allen Organs Services Ltd,152258,30/08/2018,10263133,NT,,,537850031,PN,1288.2,43341
Housing Revenue Account,Supervision and Management General,MAN00,Movement Incentives,454,1000,Personal Redacted Data,152262,30/08/2018,10263169,NT,,,,PN,1000,43341
Communities and Homes,CAST - Bed & Breakfast,CAS01,Bed and Breakfast Temporary Accommodation,146,460.83,The Carlton Hotel,,16/08/2018,47030,,,,,,,
Communities and Homes,CAST - Bed & Breakfast,CAS01,Bed and Breakfast Temporary Accommodation,146,460.83,The Carlton Hotel,,16/08/2018,47030,,,,,,,
Communities and Homes,CAST - Bed & Breakfast,CAS01,Bed and Breakfast Temporary Accommodation,146,518.5,Travelodge,,16/08/2018,47030,,,,,,,
Communities and Homes,CAST - Bed & Breakfast,CAS01,Bed and Breakfast Temporary Accommodation,146,549,Premier Inn,,16/08/2018,47030,,,,,,,
Outside portfolio expenditure,Balance Sheet,BS,Cash Suspense,9550,553,The Carlton Hotel,,16/08/2018,47030,,,,,,,
Communities and Homes,CAST - Private Sector Leasing,CAS03,Furniture,302,559.68,Monarch Carpets,,16/08/2018,47030,,,,,,,
Communities and Homes,CAST - Bed & Breakfast,CAS01,Bed and Breakfast Temporary Accommodation,146,617.5,The Carlton Hotel,,16/08/2018,47030,,,,,,,
Communities and Homes,CAST - Bed & Breakfast,CAS01,Bed and Breakfast Temporary Accommodation,146,732,The Plough Hotel,,16/08/2018,47030,,,,,,,
Communities and Homes,CAST - Bed & Breakfast,CAS01,Bed and Breakfast Temporary Accommodation,146,741,The Plough Hotel,,16/08/2018,47030,,,,,,,
Communities and Homes,CAST - Bed & Breakfast,CAS01,Bed and Breakfast Temporary Accommodation,146,741,The Plough Hotel,,16/08/2018,47030,,,,,,,
Housing Revenue Account,Unplanned Maintenance and Repair,UMR00,Tools,304,642.06,Tool Stop,,16/08/2018,47031,,,,,,,
Housing Revenue Account,Unplanned Maintenance and Repair,UMR00,Materials,303,1198.8,The Key Safe Company,,16/08/2018,47031,,,,,,,
Communities and Homes,CAST - Bed & Breakfast,CAS01,Bed and Breakfast Temporary Accommodation,146,5887.6,Travelodge,,15/08/2018,46917,,,,,,,
Communities and Homes,CAST - Bed & Breakfast,CAS01,Bed and Breakfast Temporary Accommodation,146,1128,Premier Inn,,31/08/2018,47041,,,,,,,
Housing Revenue Account,Supervision and Management General,MAN00,External Legal Costs,741,2356,HMCTS,,16/08/2018,46934,,,,,,,
Outside portfolio expenditure,User Balance Sheet Cost Centre,BSU,Collection Fund,9476,1021370,Cov & Warks Pooling,,17/08/2018,46942,,,,,,,
Outside portfolio expenditure,User Balance Sheet Cost Centre,BSU,Collection Fund,9476,386129,WCC County Fund,,20/08/2018,46969,,,,,,,
Outside portfolio expenditure,User Balance Sheet Cost Centre,BSU,Collection Fund,9476,2009418,DCLG,,20/08/2018,46968,,,,,,,
Corporate Resources,General Financial Services,GFS00,Payment Card Costs,445,3213.64,Capita,,28/08/2018,47004,,,,,,,
Communities and Homes,ITC & Support Services,CIS21,Software Maintenance,374,679.78,Bottomline Technologies,,22/08/2018,46987,,,,,,,
Communities and Homes,CAST - Private Sector Leasing,CAS03,Private Sector Leasing Scheme Properties,148,1300,Rose & Sargent,,02/08/2018,46831,,,,,,,
Communities and Homes,CAST - Private Sector Leasing,CAS03,Private Sector Leasing Scheme Properties,148,2700,Personal Redacted Data,,02/08/2018,46830,,,,,,,
Communities and Homes,CAST - Private Sector Leasing,CAS03,Private Sector Leasing Scheme Properties,148,3875,Cadman Homes,,08/08/2018,46862,,,,,,,
Communities and Homes,CAST - Private Sector Leasing,CAS03,Private Sector Leasing Scheme Properties,148,1650,Personal Redacted Data,,10/08/2018,46877,,,,,,,
Communities and Homes,CAST - Private Sector Leasing,CAS03,Private Sector Leasing Scheme Properties,148,1350,Archer Bassett,,10/08/2018,46879,,,,,,,
Communities and Homes,CAST - Private Sector Leasing,CAS03,Private Sector Leasing Scheme Properties,148,1550,Personal Redacted Data,,13/08/2018,46896,,,,,,,
Communities and Homes,CAST - Private Sector Leasing,CAS03,Private Sector Leasing Scheme Properties,148,3250,Archer Bassett,,13/08/2018,46897,,,,,,,
Communities and Homes,CAST - Private Sector Leasing,CAS03,Private Sector Leasing Scheme Properties,148,2250,Personal Redacted Data,,13/08/2018,46898,,,,,,,
Communities and Homes,CAST - Private Sector Leasing,CAS03,Private Sector Leasing Scheme Properties,148,1990,Howkins & Harrison,,14/08/2018,46905,,,,,,,
Communities and Homes,CAST - Private Sector Leasing,CAS03,Private Sector Leasing Scheme Properties,148,2770,Rose & Sargent,,14/08/2018,46906,,,,,,,
Communities and Homes,CAST - Private Sector Leasing,CAS03,Private Sector Leasing Scheme Properties,148,1142.9,Crabb Curtis,,17/08/2018,46944,,,,,,,
Communities and Homes,Homelessness Prevention,CAS06,Removals,464,560,United Movers,,17/08/2018,46943,,,,,,,
Communities and Homes,Homelessness Prevention,CAS06,Rent In Advance,137,650,Personal Redacted Data,,20/08/2018,46970,,,,,,,
Communities and Homes,Homelessness Prevention,CAS06,Rent In Advance,137,675,Shipways,,21/08/2018,46982,,,,,,,
Communities and Homes,CAST - Private Sector Leasing,CAS03,Private Sector Leasing Scheme Properties,148,4150,Personal Redacted Data,,21/08/2018,46981,,,,,,,
Outside portfolio expenditure,User Balance Sheet Cost Centre,BSU,Housing Rental Account,9280,789.75,Personal Redacted Data,,28/08/2018,47002,,,,,,,
